Workbook

Sheet Main page
M4: Before you start! Did you enable macros? This is critical for the Tool to work. Please refer to explanatory materials ("before opening the Tool" section) for advice on adjusting security settings appropriately
B6: WA Pay Equity Audit Tool
B8: STEP 1: Collate Data Ensure your payroll data is formatted correctly. Copy your data. Click the button below and follow the instructions.
B16: STEP 2: Specify Date Enter the year in which the payroll data was sampled in the cell below, then press enter. For example, if the payroll data was current as at 30/6/2012, write 2012.
E21: Year: | F21: 2012
B23: STEP 3: Specify Age Range Brackets Enter or modify the age range, then press enter. ie, if the desired age range is from 20 years to 30 years enter "20" in start and "30" in finish column
E28: Start | F28: Finish | G28: AGE RANGE
E29: 15 | F29: 19 | G29: =IFERROR(E29&-F29," ") -> 15-19
E30: 20 | F30: 24 | G30: =IFERROR(E30&-F30," ") -> 20-24
E31: 25 | F31: 29 | G31: 25-29
E32: 30 | F32: 34 | G32: 30-34
E33: 35 | F33: 39 | G33: 35-39
E34: 40 | F34: 44 | G34: 40-44
E35: 45 | F35: 49 | G35: 45-49
E36: 50 | F36: 54 | G36: 50-54
E37: 55 | F37: 59 | G37: 55-59
E38: 60 | F38: 64 | G38: 60-64
E39: 65 | F39: 69 | G39: 65-69
E40: 70 | F40: 110 | G40: =IFERROR(IF(E40=" "," ",E40&" and over")," ") -> 70 and over
B42: STEP 4: Designate 'core' and 'senior' staff What "levels" are 'non-senior' staff? (ie, those without budget and hiring control). The 'core level' you select will designate non-senior staff; all staff above that level will be 'senior' staff. During this analysis you can switch the the Gender Pay Gap to view 'Core', 'Senior' or 'All' staff. You can reset the level if you change your mind during the analysis
C49: Core level set to: | F49: 6
B51: STEP 5: Enter the name of the organisation you are auditing in the box below.
D55: Name: | F55: Example Organisation
B57: STEP 6: Click the button below
B65: Please note: The WA Pay Equity Audit Tool and its Instructions for Use and associated documents are protected by copyright. The Western Australian Department of Commerce has no objection to this material being reproduced but asserts its right to be recognised as author of its original material and the right to have its material remain unaltered.

Sheet Data
A1: INSTRUCTIONS TO OVERWRITE DATA | B1: Emp No | C1: Gender | D1: Year of Birth | E1: Section | F1: Branch/Unit | G1: Fraction | H1: F/T Hours in a Fortnight | I1: Level | J1: Raw salary | K1: Allowance/ benefit? | L1: Purchased leave? (Y/N) | M1: FTE Salary | N1: Hourly | O1: Salary | P1: Status | Q1: Level range | R1: Age | S1: Age Bracket
A2: 1. Cell B2 should be selected | B2: 1 | C2: M | D2: 1992 | E2: Section 1 | F2: Branch B | G2: 1 | H2: 75 | I2: 2 | J2: 49539.6 | K2: Yes | L2: N | M2: =IFERROR(J2/G2," ") -> 49539.6 | N2: =IFERROR((M2/$U$4)/H2," ") -> 25.26609836 | O2: =IFERROR((N2*75)*26.083," ") -> 49426.17327 | P2: =IF(G2=0," ",IF(G2=1,"Full time","Part time")) -> Full time | Q2: =IF(I2="","",IF(I2<='Main page'!$F$49,"Core staff","Senior staff")) -> Core staff | R2: =IF(D2=""," ",'Main page'!$F$21-(D2)) -> 20 | S2: =IF(D2=""," ",VLOOKUP(R2,'Main page'!$E$29:'Main page'!$G$41,3,TRUE)) -> 20-24
A3: 2. Click the arrow under the 'Paste' button and select 'Paste Values' | B3: 2 | C3: F | D3: 1963 | E3: Section 4 | F3: Branch G | G3: 0.548700035 | H3: 75 | I3: 4 | J3: 49128.3 | K3: No | L3: N | M3: 89535.80621 | N3: 45.66489206 | O3: 89330.80347 | P3: Part time | Q3: =IF(I3="","",IF(I3<='Main page'!$F$49,"Core staff","Senior staff")) -> Core staff | R3: =IF(D3=""," ",'Main page'!$F$21-(D3)) -> 49 | S3: =IF(D3=""," ",VLOOKUP(R3,'Main page'!$E$29:'Main page'!$G$41,3,TRUE)) -> 45-49
A4: 3. Click the button below | B4: 3 | C4: F | D4: 1984 | E4: Section 2 | F4: Branch D | G4: 1 | H4: 75 | I4: 6 | J4: 66171.6 | K4: No | L4: N | M4: 66171.6 | N4: 33.74872131 | O4: 66020.09235 | P4: Full time | Q4: =IF(I4="","",IF(I4<='Main page'!$F$49,"Core staff","Senior staff")) -> Core staff | R4: =IF(D4=""," ",'Main page'!$F$21-(D4)) -> 28 | S4: =IF(D4=""," ",VLOOKUP(R4,'Main page'!$E$29:'Main page'!$G$41,3,TRUE)) -> 25-29 | U4: =IF('Main page'!F21=U10,U7,IF('Main page'!F21=U11,U7,IF('Main page'!F21=U12,U7,IF('Main page'!F21=U13,U7,IF('Main page'!F21=U14,U7,IF('Main page'!F21=U15,U7,IF('Main page'!F21=U16,U7,U6))))))) -> 26.14285714
A5: This will replace the current sample data with your own data | B5: 4 | C5: M | D5: 1980 | E5: Section 4 | F5: Branch G | G5: 1 | H5: 75 | I5: 5 | J5: 67523.5 | K5: No | L5: N | M5: 67523.5 | N5: 34.43821494 | O5: 67368.89701 | P5: Full time | Q5: =IF(I5="","",IF(I5<='Main page'!$F$49,"Core staff","Senior staff")) -> Core staff | R5: =IF(D5=""," ",'Main page'!$F$21-(D5)) -> 32 | S5: =IF(D5=""," ",VLOOKUP(R5,'Main page'!$E$29:'Main page'!$G$41,3,TRUE)) -> 30-34
A6: If you get 'nonsense' data, you probably did not 'paste values' | B6: 5 | C6: F | D6: 1949 | E6: Section 3 | F6: Branch F | G6: 0.4987345915 | H6: 75 | I6: 6 | J6: 65706.3 | K6: Yes | L6: N | M6: 131746.0251 | N6: 67.19287254 | O6: 131444.3771 | P6: Part time | Q6: =IF(I6="","",IF(I6<='Main page'!$F$49,"Core staff","Senior staff")) -> Core staff | R6: =IF(D6=""," ",'Main page'!$F$21-(D6)) -> 63 | S6: =IF(D6=""," ",VLOOKUP(R6,'Main page'!$E$29:'Main page'!$G$41,3,TRUE)) -> 60-64 | U6: =365/14 -> 26.07142857 | V6: Non leap
B7: 6 | C7: M | D7: 1986 | E7: Section 1 | F7: Branch A | G7: 1 | H7: 75 | I7: 2 | J7: 47576.1 | K7: No | L7: Y | M7: 47576.1 | N7: 24.2646776 | O7: 47467.16893 | P7: Full time | Q7: =IF(I7="","",IF(I7<='Main page'!$F$49,"Core staff","Senior staff")) -> Core staff | R7: =IF(D7=""," ",'Main page'!$F$21-(D7)) -> 26 | S7: =IF(D7=""," ",VLOOKUP(R7,'Main page'!$E$29:'Main page'!$G$41,3,TRUE)) -> 25-29 | U7: =366/14 -> 26.14285714 | V7: Leap
B8: 7 | C8: M | D8: 1952 | E8: Section 6 | F8: Branch L | G8: 1 | H8: 75 | I8: 4 | J8: 61628.6 | K8: No | L8: N | M8: 61628.6 | N8: 31.43170856 | O8: 61487.49408 | P8: Full time | Q8: =IF(I8="","",IF(I8<='Main page'!$F$49,"Core staff","Senior staff")) -> Core staff | R8: =IF(D8=""," ",'Main page'!$F$21-(D8)) -> 60 | S8: =IF(D8=""," ",VLOOKUP(R8,'Main page'!$E$29:'Main page'!$G$41,3,TRUE)) -> 60-64
B9: 8 | C9: M | D9: 1947 | E9: Section 1 | F9: Branch A | G9: 0.5639091752 | H9: 75 | I9: 4 | J9: 61947.6 | K9: Yes | L9: N | M9: 109853.8607 | N9: 56.02746996 | O9: 109602.3374 | P9: Part time | Q9: =IF(I9="","",IF(I9<='Main page'!$F$49,"Core staff","Senior staff")) -> Core staff | R9: =IF(D9=""," ",'Main page'!$F$21-(D9)) -> 65 | S9: =IF(D9=""," ",VLOOKUP(R9,'Main page'!$E$29:'Main page'!$G$41,3,TRUE)) -> 65-69 | U9: Leap years:
B10: 9 | C10: F | D10: 1970 | E10: Section 1 | F10: Branch A | G10: 1 | H10: 75 | I10: 7 | J10: 75952.8 | K10: No | L10: N | M10: 75952.8 | N10: 38.73731148 | O10: 75778.89714 | P10: Full time | Q10: =IF(I10="","",IF(I10<='Main page'!$F$49,"Core staff","Senior staff")) -> Senior staff | R10: =IF(D10=""," ",'Main page'!$F$21-(D10)) -> 42 | S10: =IF(D10=""," ",VLOOKUP(R10,'Main page'!$E$29:'Main page'!$G$41,3,TRUE)) -> 40-44 | U10: 1996
B11: 10 | C11: M | D11: 1973 | E11: Section 3 | F11: Branch F | G11: 1 | H11: 75 | I11: 5 | J11: 69663 | K11: No | L11: N | M11: 69663 | N11: 35.52939891 | O11: 69503.49838 | P11: Full time | Q11: =IF(I11="","",IF(I11<='Main page'!$F$49,"Core staff","Senior staff")) -> Core staff | R11: =IF(D11=""," ",'Main page'!$F$21-(D11)) -> 39 | S11: =IF(D11=""," ",VLOOKUP(R11,'Main page'!$E$29:'Main page'!$G$41,3,TRUE)) -> 35-39 | U11: 2000
A12: NOTE: Columns on the right hand side shaded in grey contain formulae that use the data in the other rows. DO NOT PASTE PAYROLL DATA INTO THE GREY CELLS. If you add your data in unshaded rows (left of the grey area), the grey columns will update themselves. For more information, see explanatory materials. | B12: 11 | C12: F | D12: 1961 | E12: Section 6 | F12: Branch K | G12: 1 | H12: 75 | I12: 7 | J12: 75928.5 | K12: No | L12: N | M12: 75928.5 | N12: 38.72491803 | O12: 75754.65278 | P12: Full time | Q12: =IF(I12="","",IF(I12<='Main page'!$F$49,"Core staff","Senior staff")) -> Senior staff | R12: =IF(D12=""," ",'Main page'!$F$21-(D12)) -> 51 | S12: =IF(D12=""," ",VLOOKUP(R12,'Main page'!$E$29:'Main page'!$G$41,3,TRUE)) -> 50-54 | U12: 2004
B13: 12 | C13: M | D13: 1979 | E13: Section 5 | F13: Branch I | G13: 1 | H13: 75 | I13: 6 | J13: 80025 | K13: No | L13: N | M13: 80025 | N13: 40.81420765 | O13: 79841.77336 | P13: Full time | Q13: =IF(I13="","",IF(I13<='Main page'!$F$49,"Core staff","Senior staff")) -> Core staff | R13: =IF(D13=""," ",'Main page'!$F$21-(D13)) -> 33 | S13: =IF(D13=""," ",VLOOKUP(R13,'Main page'!$E$29:'Main page'!$G$41,3,TRUE)) -> 30-34 | U13: 2008
B14: 13 | C14: F | D14: 1952 | E14: Section 1 | F14: Branch B | G14: 1 | H14: 75 | I14: 7 | J14: 74376 | K14: Yes | L14: Y | M14: 74376 | N14: 37.93311475 | O14: 74205.70741 | P14: Full time | Q14: =IF(I14="","",IF(I14<='Main page'!$F$49,"Core staff","Senior staff")) -> Senior staff | R14: =IF(D14=""," ",'Main page'!$F$21-(D14)) -> 60 | S14: =IF(D14=""," ",VLOOKUP(R14,'Main page'!$E$29:'Main page'!$G$41,3,TRUE)) -> 60-64 | U14: 2012
B15: 14 | C15: M | D15: 1977 | E15: Section 6 | F15: Branch K | G15: 0.5927726184 | H15: 75 | I15: 3 | J15: 57555.3 | K15: No | L15: N | M15: 97095.0719 | N15: 49.52025525 | O15: 96872.76132 | P15: Part time | Q15: =IF(I15="","",IF(I15<='Main page'!$F$49,"Core staff","Senior staff")) -> Core staff | R15: =IF(D15=""," ",'Main page'!$F$21-(D15)) -> 35 | S15: =IF(D15=""," ",VLOOKUP(R15,'Main page'!$E$29:'Main page'!$G$41,3,TRUE)) -> 35-39 | U15: 2016
B16: 15 | C16: M | D16: 1936 | E16: Section 4 | F16: Branch H | G16: 0.5264728183 | H16: 75 | I16: 5 | J16: 69093.2 | K16: No | L16: N | M16: 131237.9245 | N16: 66.93373201 | O16: 130937.4399 | P16: Part time | Q16: =IF(I16="","",IF(I16<='Main page'!$F$49,"Core staff","Senior staff")) -> Core staff | R16: =IF(D16=""," ",'Main page'!$F$21-(D16)) -> 76 | S16: =IF(D16=""," ",VLOOKUP(R16,'Main page'!$E$29:'Main page'!$G$41,3,TRUE)) -> 70 and over | U16: 2020
B17: 16 | C17: F | D17: 1977 | E17: Section 6 | F17: Branch K | G17: 1 | H17: 75 | I17: 6 | J17: 66291.3 | K17: Yes | L17: N | M17: 66291.3 | N17: 33.80977049 | O17: 66139.51828 | P17: Full time | Q17: =IF(I17="","",IF(I17<='Main page'!$F$49,"Core staff","Senior staff")) -> Core staff | R17: =IF(D17=""," ",'Main page'!$F$21-(D17)) -> 35 | S17: =IF(D17=""," ",VLOOKUP(R17,'Main page'!$E$29:'Main page'!$G$41,3,TRUE)) -> 35-39
B18: 17 | C18: F | D18: 1953 | E18: Section 6 | F18: Branch L | G18: 0.6806229909 | H18: 75 | I18: 6 | J18: 69486.3 | K18: Yes | L18: N | M18: 102092.2022 | N18: 52.06888272 | O18: 101858.4501 | P18: Part time | Q18: =IF(I18="","",IF(I18<='Main page'!$F$49,"Core staff","Senior staff")) -> Core staff | R18: =IF(D18=""," ",'Main page'!$F$21-(D18)) -> 59 | S18: =IF(D18=""," ",VLOOKUP(R18,'Main page'!$E$29:'Main page'!$G$41,3,TRUE)) -> 55-59 | U18: NOTE: Columns shaded in grey contain formulae that use the data to the left. DO NOT PASTE PAYROLL DATA INTO THE GREY CELLS. Add your data to the unshaded columns to the left of the shaded area, which will then 'fill' the formulae in the shaded columns. For more information, see explanatory materials.
B19: 18 | C19: F | D19: 1976 | E19: Section 6 | F19: Branch K | G19: 0.4872006405 | H19: 75 | I19: 5 | J19: 56035.8 | K19: Yes | L19: N | M19: 115015.8587 | N19: 58.66018292 | O19: 114752.5163 | P19: Part time | Q19: =IF(I19="","",IF(I19<='Main page'!$F$49,"Core staff","Senior staff")) -> Core staff | R19: =IF(D19=""," ",'Main page'!$F$21-(D19)) -> 36 | S19: =IF(D19=""," ",VLOOKUP(R19,'Main page'!$E$29:'Main page'!$G$41,3,TRUE)) -> 35-39
B20: 19 | C20: M | D20: 1955 | E20: Section 2 | F20: Branch C | G20: 0.5163676418 | H20: 75 | I20: 5 | J20: 73509.7 | K20: No | L20: N | M20: 142359.2302 | N20: 72.60580047 | O20: 142033.282 | P20: Part time | Q20: =IF(I20="","",IF(I20<='Main page'!$F$49,"Core staff","Senior staff")) -> Core staff | R20: =IF(D20=""," ",'Main page'!$F$21-(D20)) -> 57 | S20: =IF(D20=""," ",VLOOKUP(R20,'Main page'!$E$29:'Main page'!$G$41,3,TRUE)) -> 55-59
A21: QUICK CHECK TIP: Make sure there are logical values created in the grey cells. If you see error messages or extreme values, you need to check that your data is correct, and that you have supplied data in all compulsory fields. You will find it useful to sort your salary column by value (you will need to remove the security protection: Review Tab/ Unprotect sheet) | B21: 20 | C21: M | D21: 1933 | E21: Section 6 | F21: Branch L | G21: 1 | H21: 75 | I21: 3 | J21: 53263.1 | K21: Yes | L21: N | M21: 53263.1 | N21: 27.16515118 | O21: 53141.14787 | P21: Full time | Q21: =IF(I21="","",IF(I21<='Main page'!$F$49,"Core staff","Senior staff")) -> Core staff | R21: =IF(D21=""," ",'Main page'!$F$21-(D21)) -> 79 | S21: =IF(D21=""," ",VLOOKUP(R21,'Main page'!$E$29:'Main page'!$G$41,3,TRUE)) -> 70 and over
B22: 21 | C22: M | D22: 1975 | E22: Section 3 | F22: Branch E | G22: 1 | H22: 75 | I22: 7 | J22: 90493.7 | K22: Yes | L22: Y | M22: 90493.7 | N22: 46.15343534 | O22: 90286.50404 | P22: Full time | Q22: =IF(I22="","",IF(I22<='Main page'!$F$49,"Core staff","Senior staff")) -> Senior staff | R22: =IF(D22=""," ",'Main page'!$F$21-(D22)) -> 37 | S22: =IF(D22=""," ",VLOOKUP(R22,'Main page'!$E$29:'Main page'!$G$41,3,TRUE)) -> 35-39
B23: 22 | C23: F | D23: 1980 | E23: Section 5 | F23: Branch J | G23: 0.5886897343 | H23: 75 | I23: 7 | J23: 75249 | K23: No | L23: N | M23: 127824.5494 | N23: 65.19284849 | O23: 127531.88 | P23: Part time | Q23: =IF(I23="","",IF(I23<='Main page'!$F$49,"Core staff","Senior staff")) -> Senior staff | R23: =IF(D23=""," ",'Main page'!$F$21-(D23)) -> 32 | S23: =IF(D23=""," ",VLOOKUP(R23,'Main page'!$E$29:'Main page'!$G$41,3,TRUE)) -> 30-34
B24: 23 | C24: F | D24: 1981 | E24: Section 1 | F24: Branch B | G24: 0.5642551787 | H24: 75 | I24: 5 | J24: 58833 | K24: No | L24: N | M24: 104266.6549 | N24: 53.17789321 | O24: 104027.9242 | P24: Part time | Q24: =IF(I24="","",IF(I24<='Main page'!$F$49,"Core staff","Senior staff")) -> Core staff | R24: =IF(D24=""," ",'Main page'!$F$21-(D24)) -> 31 | S24: =IF(D24=""," ",VLOOKUP(R24,'Main page'!$E$29:'Main page'!$G$41,3,TRUE)) -> 30-34
B25: 24 | C25: M | D25: 1980 | E25: Section 4 | F25: Branch H | G25: 1 | H25: 75 | I25: 4 | J25: 60074.3 | K25: No | L25: N | M25: 60074.3 | N25: 30.63898725 | O25: 59936.75283 | P25: Full time | Q25: =IF(I25="","",IF(I25<='Main page'!$F$49,"Core staff","Senior staff")) -> Core staff | R25: =IF(D25=""," ",'Main page'!$F$21-(D25)) -> 32 | S25: =IF(D25=""," ",VLOOKUP(R25,'Main page'!$E$29:'Main page'!$G$41,3,TRUE)) -> 30-34
B26: 25 | C26: F | D26: 1974 | E26: Section 3 | F26: Branch E | G26: 0.6089998634 | H26: 75 | I26: 3 | J26: 46447.2 | K26: No | L26: N | M26: 76267.9974 | N26: 38.89806789 | O26: 76093.37286 | P26: Part time | Q26: =IF(I26="","",IF(I26<='Main page'!$F$49,"Core staff","Senior staff")) -> Core staff | R26: =IF(D26=""," ",'Main page'!$F$21-(D26)) -> 38 | S26: =IF(D26=""," ",VLOOKUP(R26,'Main page'!$E$29:'Main page'!$G$41,3,TRUE)) -> 35-39
B27: 26 | C27: F | D27: 1971 | E27: Section 2 | F27: Branch D | G27: 0.6787482467 | H27: 75 | I27: 3 | J27: 46957.5 | K27: No | L27: N | M27: 69182.49915 | N27: 35.28433472 | O27: 69024.09769 | P27: Part time | Q27: =IF(I27="","",IF(I27<='Main page'!$F$49,"Core staff","Senior staff")) -> Core staff | R27: =IF(D27=""," ",'Main page'!$F$21-(D27)) -> 41 | S27: =IF(D27=""," ",VLOOKUP(R27,'Main page'!$E$29:'Main page'!$G$41,3,TRUE)) -> 40-44
B28: 27 | C28: M | D28: 1963 | E28: Section 3 | F28: Branch F | G28: 1 | H28: 80 | I28: 4 | J28: 63032.2 | K28: No | L28: N | M28: 63032.2 | N28: 30.13834699 | O28: 58957.38785 | P28: Full time | Q28: =IF(I28="","",IF(I28<='Main page'!$F$49,"Core staff","Senior staff")) -> Core staff | R28: =IF(D28=""," ",'Main page'!$F$21-(D28)) -> 49 | S28: =IF(D28=""," ",VLOOKUP(R28,'Main page'!$E$29:'Main page'!$G$41,3,TRUE)) -> 45-49
B29: 28 | C29: F | D29: 1979 | E29: Section 6 | F29: Branch K | G29: 0.5785229346 | H29: 75 | I29: 6 | J29: 66870 | K29: No | L29: N | M29: 115587.4659 | N29: 58.95171305 | O29: 115322.8149 | P29: Part time | Q29: =IF(I29="","",IF(I29<='Main page'!$F$49,"Core staff","Senior staff")) -> Core staff | R29: =IF(D29=""," ",'Main page'!$F$21-(D29)) -> 33 | S29: =IF(D29=""," ",VLOOKUP(R29,'Main page'!$E$29:'Main page'!$G$41,3,TRUE)) -> 30-34
A30: NOTE: If your data contains more than 20, 000 employees, "handle drag" (copy fill) the formulae in the grey columns. See explanatory materials (p.31) for help. | B30: 29 | C30: F | D30: 1956 | E30: Section 6 | F30: Branch L | G30: 0.7742689735 | H30: 75 | I30: 2 | J30: 40512.6 | K30: No | L30: N | M30: 52323.67741 | N30: 26.68602855 | O30: 52203.87621 | P30: Part time | Q30: =IF(I30="","",IF(I30<='Main page'!$F$49,"Core staff","Senior staff")) -> Core staff | R30: =IF(D30=""," ",'Main page'!$F$21-(D30)) -> 56 | S30: =IF(D30=""," ",VLOOKUP(R30,'Main page'!$E$29:'Main page'!$G$41,3,TRUE)) -> 55-59
B31: 30 | C31: F | D31: 1973 | E31: Section 1 | F31: Branch B | G31: 1 | H31: 75 | I31: 3 | J31: 44935.2 | K31: No | L31: N | M31: 44935.2 | N31: 22.91777049 | O31: 44832.31558 | P31: Full time | Q31: =IF(I31="","",IF(I31<='Main page'!$F$49,"Core staff","Senior staff")) -> Core staff | R31: =IF(D31=""," ",'Main page'!$F$21-(D31)) -> 39 | S31: =IF(D31=""," ",VLOOKUP(R31,'Main page'!$E$29:'Main page'!$G$41,3,TRUE)) -> 35-39
B32: 31 | C32: M | D32: 1937 | E32: Section 1 | F32: Branch B | G32: 1 | H32: 75 | I32: 3 | J32: 54714 | K32: No | L32: N | M32: 54714 | N32: 27.90513661 | O32: 54588.72587 | P32: Full time | Q32: =IF(I32="","",IF(I32<='Main page'!$F$49,"Core staff","Senior staff")) -> Core staff | R32: =IF(D32=""," ",'Main page'!$F$21-(D32)) -> 75 | S32: =IF(D32=""," ",VLOOKUP(R32,'Main page'!$E$29:'Main page'!$G$41,3,TRUE)) -> 70 and over
B33: 32 | C33: M | D33: 1939 | E33: Section 5 | F33: Branch J | G33: 1 | H33: 80 | I33: 5 | J33: 71465.9 | K33: No | L33: N | M33: 71465.9 | N33: 34.17085383 | O33: 66845.87852 | P33: Full time | Q33: =IF(I33="","",IF(I33<='Main page'!$F$49,"Core staff","Senior staff")) -> Core staff | R33: =IF(D33=""," ",'Main page'!$F$21-(D33)) -> 73 | S33: =IF(D33=""," ",VLOOKUP(R33,'Main page'!$E$29:'Main page'!$G$41,3,TRUE)) -> 70 and over
B34: 33 | C34: F | D34: 1956 | E34: Section 2 | F34: Branch C | G34: 1 | H34: 80 | I34: 5 | J34: 57285 | K34: Yes | L34: N | M34: 57285 | N34: 27.39036885 | O34: 53581.72431 | P34: Full time | Q34: =IF(I34="","",IF(I34<='Main page'!$F$49,"Core staff","Senior staff")) -> Core staff | R34: =IF(D34=""," ",'Main page'!$F$21-(D34)) -> 56 | S34: =IF(D34=""," ",VLOOKUP(R34,'Main page'!$E$29:'Main page'!$G$41,3,TRUE)) -> 55-59
B35: 34 | C35: F | D35: 1979 | E35: Section 6 | F35: Branch K | G35: 0.483176194 | H35: 75 | I35: 4 | J35: 51762.6 | K35: No | L35: Y | M35: 107129.8641 | N35: 54.63818206 | O35: 106884.5777 | P35: Part time | Q35: =IF(I35="","",IF(I35<='Main page'!$F$49,"Core staff","Senior staff")) -> Core staff | R35: =IF(D35=""," ",'Main page'!$F$21-(D35)) -> 33 | S35: =IF(D35=""," ",VLOOKUP(R35,'Main page'!$E$29:'Main page'!$G$41,3,TRUE)) -> 30-34
B36: 35 | C36: M | D36: 1945 | E36: Section 3 | F36: Branch F | G36: 0.5174456764 | H36: 80 | I36: 3 | J36: 56522.4 | K36: Yes | L36: N | M36: 109233.4956 | N36: 52.22913039 | O36: 102171.9306 | P36: Part time | Q36: =IF(I36="","",IF(I36<='Main page'!$F$49,"Core staff","Senior staff")) -> Core staff | R36: =IF(D36=""," ",'Main page'!$F$21-(D36)) -> 67 | S36: =IF(D36=""," ",VLOOKUP(R36,'Main page'!$E$29:'Main page'!$G$41,3,TRUE)) -> 65-69
B37: 36 | C37: F | D37: 1981 | E37: Section 6 | F37: Branch K | G37: 1 | H37: 75 | I37: 8 | J37: 95626 | K37: No | L37: N | M37: 95626 | N37: 48.77100182 | O37: 95407.05304 | P37: Full time | Q37: =IF(I37="","",IF(I37<='Main page'!$F$49,"Core staff","Senior staff")) -> Senior staff | R37: =IF(D37=""," ",'Main page'!$F$21-(D37)) -> 31 | S37: =IF(D37=""," ",VLOOKUP(R37,'Main page'!$E$29:'Main page'!$G$41,3,TRUE)) -> 30-34
B38: 37 | C38: M | D38: 1966 | E38: Section 5 | F38: Branch J | G38: 1 | H38: 75 | I38: 2 | J38: 51043.3 | K38: No | L38: N | M38: 51043.3 | N38: 26.03301275 | O38: 50926.43037 | P38: Full time | Q38: =IF(I38="","",IF(I38<='Main page'!$F$49,"Core staff","Senior staff")) -> Core staff | R38: =IF(D38=""," ",'Main page'!$F$21-(D38)) -> 46 | S38: =IF(D38=""," ",VLOOKUP(R38,'Main page'!$E$29:'Main page'!$G$41,3,TRUE)) -> 45-49
B39: 38 | C39: F | D39: 1950 | E39: Section 6 | F39: Branch L | G39: 1 | H39: 75 | I39: 8 | J39: 97056 | K39: No | L39: N | M39: 97056 | N39: 49.50032787 | O39: 96833.77889 | P39: Full time | Q39: =IF(I39="","",IF(I39<='Main page'!$F$49,"Core staff","Senior staff")) -> Senior staff | R39: =IF(D39=""," ",'Main page'!$F$21-(D39)) -> 62 | S39: =IF(D39=""," ",VLOOKUP(R39,'Main page'!$E$29:'Main page'!$G$41,3,TRUE)) -> 60-64
B40: 39 | C40: F | D40: 1961 | E40: Section 4 | F40: Branch G | G40: 1 | H40: 75 | I40: 4 | J40: 51841.8 | K40: No | L40: N | M40: 51841.8 | N40: 26.4402623 | O40: 51723.10211 | P40: Full time | Q40: =IF(I40="","",IF(I40<='Main page'!$F$49,"Core staff","Senior staff")) -> Core staff | R40: =IF(D40=""," ",'Main page'!$F$21-(D40)) -> 51 | S40: =IF(D40=""," ",VLOOKUP(R40,'Main page'!$E$29:'Main page'!$G$41,3,TRUE)) -> 50-54
B41: 40 | C41: M | D41: 1952 | E41: Section 6 | F41: Branch L | G41: 1 | H41: 75 | I41: 2 | J41: 49857.5 | K41: No | L41: N | M41: 49857.5 | N41: 25.42823315 | O41: 49743.3454 | P41: Full time | Q41: =IF(I41="","",IF(I41<='Main page'!$F$49,"Core staff","Senior staff")) -> Core staff | R41: =IF(D41=""," ",'Main page'!$F$21-(D41)) -> 60 | S41: =IF(D41=""," ",VLOOKUP(R41,'Main page'!$E$29:'Main page'!$G$41,3,TRUE)) -> 60-64
B42: 41 | C42: F | D42: 1987 | E42: Section 5 | F42: Branch I | G42: 1 | H42: 75 | I42: 1 | J42: 31051.8 | K42: No | L42: N | M42: 31051.8 | N42: 15.83698361 | O42: 30980.70326 | P42: Full time | Q42: =IF(I42="","",IF(I42<='Main page'!$F$49,"Core staff","Senior staff")) -> Core staff | R42: =IF(D42=""," ",'Main page'!$F$21-(D42)) -> 25 | S42: =IF(D42=""," ",VLOOKUP(R42,'Main page'!$E$29:'Main page'!$G$41,3,TRUE)) -> 25-29
B43: 42 | C43: M | D43: 1952 | E43: Section 1 | F43: Branch A | G43: 1 | H43: 75 | I43: 7 | J43: 91751 | K43: Yes | L43: N | M43: 91751 | N43: 46.79468124 | O43: 91540.92531 | P43: Full time | Q43: =IF(I43="","",IF(I43<='Main page'!$F$49,"Core staff","Senior staff")) -> Senior staff | R43: =IF(D43=""," ",'Main page'!$F$21-(D43)) -> 60 | S43: =IF(D43=""," ",VLOOKUP(R43,'Main page'!$E$29:'Main page'!$G$41,3,TRUE)) -> 60-64
B44: 43 | C44: F | D44: 1988 | E44: Section 6 | F44: Branch L | G44: 0.7416150597 | H44: 75 | I44: 3 | J44: 46518.3 | K44: No | L44: N | M44: 62725.66797 | N44: 31.99123321 | O44: 62582.05019 | P44: Part time | Q44: =IF(I44="","",IF(I44<='Main page'!$F$49,"Core staff","Senior staff")) -> Core staff | R44: =IF(D44=""," ",'Main page'!$F$21-(D44)) -> 24 | S44: =IF(D44=""," ",VLOOKUP(R44,'Main page'!$E$29:'Main page'!$G$41,3,TRUE)) -> 20-24
B45: 44 | C45: M | D45: 1949 | E45: Section 4 | F45: Branch G | G45: 1 | H45: 75 | I45: 5 | J45: 69517.8 | K45: No | L45: N | M45: 69517.8 | N45: 35.45534426 | O45: 69358.63083 | P45: Full time | Q45: =IF(I45="","",IF(I45<='Main page'!$F$49,"Core staff","Senior staff")) -> Core staff | R45: =IF(D45=""," ",'Main page'!$F$21-(D45)) -> 63 | S45: =IF(D45=""," ",VLOOKUP(R45,'Main page'!$E$29:'Main page'!$G$41,3,TRUE)) -> 60-64
B46: 45 | C46: M | D46: 1973 | E46: Section 5 | F46: Branch J | G46: 0.5651404262 | H46: 80 | I46: 5 | J46: 72616.5 | K46: No | L46: N | M46: 128492.8429 | N46: 61.43783472 | O46: 120186.2282 | P46: Part time | Q46: =IF(I46="","",IF(I46<='Main page'!$F$49,"Core staff","Senior staff")) -> Core staff | R46: =IF(D46=""," ",'Main page'!$F$21-(D46)) -> 39 | S46: =IF(D46=""," ",VLOOKUP(R46,'Main page'!$E$29:'Main page'!$G$41,3,TRUE)) -> 35-39
B47: 46 | C47: F | D47: 1985 | E47: Section 5 | F47: Branch I | G47: 0.4222185594 | H47: 75 | I47: 7 | J47: 75287.7 | K47: No | L47: N | M47: 178314.5206 | N47: 90.94365348 | O47: 177906.2485 | P47: Part time | Q47: =IF(I47="","",IF(I47<='Main page'!$F$49,"Core staff","Senior staff")) -> Senior staff | R47: =IF(D47=""," ",'Main page'!$F$21-(D47)) -> 27 | S47: =IF(D47=""," ",VLOOKUP(R47,'Main page'!$E$29:'Main page'!$G$41,3,TRUE)) -> 25-29
B48: 47 | C48: M | D48: 1933 | E48: Section 5 | F48: Branch J | G48: 1 | H48: 75 | I48: 4 | J48: 62014.7 | K48: No | L48: N | M48: 62014.7 | N48: 31.62862659 | O48: 61872.71006 | P48: Full time | Q48: =IF(I48="","",IF(I48<='Main page'!$F$49,"Core staff","Senior staff")) -> Core staff | R48: =IF(D48=""," ",'Main page'!$F$21-(D48)) -> 79 | S48: =IF(D48=""," ",VLOOKUP(R48,'Main page'!$E$29:'Main page'!$G$41,3,TRUE)) -> 70 and over
B49: 48 | C49: M | D49: 1959 | E49: Section 5 | F49: Branch J | G49: 1 | H49: 75 | I49: 2 | J49: 47135 | K49: No | L49: N | M49: 47135 | N49: 24.03970856 | O49: 47027.07888 | P49: Full time | Q49: =IF(I49="","",IF(I49<='Main page'!$F$49,"Core staff","Senior staff")) -> Core staff | R49: =IF(D49=""," ",'Main page'!$F$21-(D49)) -> 53 | S49: =IF(D49=""," ",VLOOKUP(R49,'Main page'!$E$29:'Main page'!$G$41,3,TRUE)) -> 50-54
B50: 49 | C50: M | D50: 1940 | E50: Section 6 | F50: Branch L | G50: 1 | H50: 80 | I50: 3 | J50: 57516.8 | K50: Yes | L50: N | M50: 57516.8 | N50: 27.50120219 | O50: 53798.53925 | P50: Full time | Q50: =IF(I50="","",IF(I50<='Main page'!$F$49,"Core staff","Senior staff")) -> Core staff | R50: =IF(D50=""," ",'Main page'!$F$21-(D50)) -> 72 | S50: =IF(D50=""," ",VLOOKUP(R50,'Main page'!$E$29:'Main page'!$G$41,3,TRUE)) -> 70 and over
B51: 50 | C51: M | D51: 1935 | E51: Section 1 | F51: Branch B | G51: 1 | H51: 75 | I51: 5 | J51: 72472.4 | K51: No | L51: N | M51: 72472.4 | N51: 36.96224408 | O51: 72306.46593 | P51: Full time | Q51: =IF(I51="","",IF(I51<='Main page'!$F$49,"Core staff","Senior staff")) -> Core staff | R51: =IF(D51=""," ",'Main page'!$F$21-(D51)) -> 77 | S51: =IF(D51=""," ",VLOOKUP(R51,'Main page'!$E$29:'Main page'!$G$41,3,TRUE)) -> 70 and over
B52: 51 | C52: F | D52: 1988 | E52: Section 2 | F52: Branch D | G52: 1 | H52: 80 | I52: 3 | J52: 46714.5 | K52: No | L52: N | M52: 46714.5 | N52: 22.33616803 | O52: 43694.57031 | P52: Full time | Q52: =IF(I52="","",IF(I52<='Main page'!$F$49,"Core staff","Senior staff")) -> Core staff | R52: =IF(D52=""," ",'Main page'!$F$21-(D52)) -> 24 | S52: =IF(D52=""," ",VLOOKUP(R52,'Main page'!$E$29:'Main page'!$G$41,3,TRUE)) -> 20-24
B53: 52 | C53: F | D53: 1980 | E53: Section 6 | F53: Branch K | G53: 1 | H53: 75 | I53: 2 | J53: 39206.7 | K53: No | L53: N | M53: 39206.7 | N53: 19.99613115 | O53: 39116.93165 | P53: Full time | Q53: =IF(I53="","",IF(I53<='Main page'!$F$49,"Core staff","Senior staff")) -> Core staff | R53: =IF(D53=""," ",'Main page'!$F$21-(D53)) -> 32 | S53: =IF(D53=""," ",VLOOKUP(R53,'Main page'!$E$29:'Main page'!$G$41,3,TRUE)) -> 30-34
B54: 53 | C54: M | D54: 1972 | E54: Section 6 | F54: Branch L | G54: 1 | H54: 75 | I54: 7 | J54: 91914.9 | K54: No | L54: N | M54: 91914.9 | N54: 46.87827322 | O54: 91704.45004 | P54: Full time | Q54: =IF(I54="","",IF(I54<='Main page'!$F$49,"Core staff","Senior staff")) -> Senior staff | R54: =IF(D54=""," ",'Main page'!$F$21-(D54)) -> 40 | S54: =IF(D54=""," ",VLOOKUP(R54,'Main page'!$E$29:'Main page'!$G$41,3,TRUE)) -> 40-44
B55: 54 | C55: F | D55: 1977 | E55: Section 6 | F55: Branch L | G55: 1 | H55: 80 | I55: 6 | J55: 64939.5 | K55: Yes | L55: N | M55: 64939.5 | N55: 31.05030738 | O55: 60741.38755 | P55: Full time | Q55: =IF(I55="","",IF(I55<='Main page'!$F$49,"Core staff","Senior staff")) -> Core staff | R55: =IF(D55=""," ",'Main page'!$F$21-(D55)) -> 35 | S55: =IF(D55=""," ",VLOOKUP(R55,'Main page'!$E$29:'Main page'!$G$41,3,TRUE)) -> 35-39
B56: 55 | C56: F | D56: 1955 | E56: Section 1 | F56: Branch B | G56: 1 | H56: 75 | I56: 2 | J56: 41673.6 | K56: No | L56: N | M56: 41673.6 | N56: 21.25429508 | O56: 41578.1834 | P56: Full time | Q56: =IF(I56="","",IF(I56<='Main page'!$F$49,"Core staff","Senior staff")) -> Core staff | R56: =IF(D56=""," ",'Main page'!$F$21-(D56)) -> 57 | S56: =IF(D56=""," ",VLOOKUP(R56,'Main page'!$E$29:'Main page'!$G$41,3,TRUE)) -> 55-59
B57: 56 | C57: M | D57: 1983 | E57: Section 2 | F57: Branch D | G57: 1 | H57: 75 | I57: 9 | J57: 118022.3 | K57: No | L57: Y | M57: 118022.3 | N57: 60.19352277 | O57: 117752.0741 | P57: Full time | Q57: =IF(I57="","",IF(I57<='Main page'!$F$49,"Core staff","Senior staff")) -> Senior staff | R57: =IF(D57=""," ",'Main page'!$F$21-(D57)) -> 29 | S57: =IF(D57=""," ",VLOOKUP(R57,'Main page'!$E$29:'Main page'!$G$41,3,TRUE)) -> 25-29
B58: 57 | C58: M | D58: 1938 | E58: Section 2 | F58: Branch D | G58: 0.5880106629 | H58: 75 | I58: 4 | J58: 61091.8 | K58: Yes | L58: N | M58: 103895.735 | N58: 52.9887173 | O58: 103657.8535 | P58: Part time | Q58: =IF(I58="","",IF(I58<='Main page'!$F$49,"Core staff","Senior staff")) -> Core staff | R58: =IF(D58=""," ",'Main page'!$F$21-(D58)) -> 74 | S58: =IF(D58=""," ",VLOOKUP(R58,'Main page'!$E$29:'Main page'!$G$41,3,TRUE)) -> 70 and over
B59: 58 | C59: M | D59: 1975 | E59: Section 1 | F59: Branch B | G59: 1 | H59: 75 | I59: 5 | J59: 70887.3 | K59: No | L59: Y | M59: 70887.3 | N59: 36.15381421 | O59: 70724.9952 | P59: Full time | Q59: =IF(I59="","",IF(I59<='Main page'!$F$49,"Core staff","Senior staff")) -> Core staff | R59: =IF(D59=""," ",'Main page'!$F$21-(D59)) -> 37 | S59: =IF(D59=""," ",VLOOKUP(R59,'Main page'!$E$29:'Main page'!$G$41,3,TRUE)) -> 35-39
B60: 59 | C60: M | D60: 1966 | E60: Section 6 | F60: Branch K | G60: 1 | H60: 75 | I60: 6 | J60: 83141.3 | K60: No | L60: N | M60: 83141.3 | N60: 42.40357741 | O60: 82950.93823 | P60: Full time | Q60: =IF(I60="","",IF(I60<='Main page'!$F$49,"Core staff","Senior staff")) -> Core staff | R60: =IF(D60=""," ",'Main page'!$F$21-(D60)) -> 46 | S60: =IF(D60=""," ",VLOOKUP(R60,'Main page'!$E$29:'Main page'!$G$41,3,TRUE)) -> 45-49
B61: 60 | C61: F | D61: 1947 | E61: Section 2 | F61: Branch C | G61: 1 | H61: 75 | I61: 3 | J61: 43956.9 | K61: No | L61: N | M61: 43956.9 | N61: 22.41881967 | O61: 43856.25551 | P61: Full time | Q61: =IF(I61="","",IF(I61<='Main page'!$F$49,"Core staff","Senior staff")) -> Core staff | R61: =IF(D61=""," ",'Main page'!$F$21-(D61)) -> 65 | S61: =IF(D61=""," ",VLOOKUP(R61,'Main page'!$E$29:'Main page'!$G$41,3,TRUE)) -> 65-69
B62: 61 | C62: F | D62: 1945 | E62: Section 2 | F62: Branch D | G62: 0.7446031745 | H62: 75 | I62: 5 | J62: 59606.1 | K62: No | L62: N | M62: 80050.82712 | N62: 40.82737995 | O62: 79867.54135 | P62: Part time | Q62: =IF(I62="","",IF(I62<='Main page'!$F$49,"Core staff","Senior staff")) -> Core staff | R62: =IF(D62=""," ",'Main page'!$F$21-(D62)) -> 67 | S62: =IF(D62=""," ",VLOOKUP(R62,'Main page'!$E$29:'Main page'!$G$41,3,TRUE)) -> 65-69
B63: 62 | C63: M | D63: 1952 | E63: Section 5 | F63: Branch J | G63: 1 | H63: 75 | I63: 2 | J63: 51223.7 | K63: No | L63: N | M63: 51223.7 | N63: 26.12502004 | O63: 51106.41732 | P63: Full time | Q63: =IF(I63="","",IF(I63<='Main page'!$F$49,"Core staff","Senior staff")) -> Core staff | R63: =IF(D63=""," ",'Main page'!$F$21-(D63)) -> 60 | S63: =IF(D63=""," ",VLOOKUP(R63,'Main page'!$E$29:'Main page'!$G$41,3,TRUE)) -> 60-64
B64: 63 | C64: F | D64: 1955 | E64: Section 4 | F64: Branch H | G64: 1 | H64: 75 | I64: 7 | J64: 76494.6 | K64: No | L64: N | M64: 76494.6 | N64: 39.01363934 | O64: 76319.45663 | P64: Full time | Q64: =IF(I64="","",IF(I64<='Main page'!$F$49,"Core staff","Senior staff")) -> Senior staff | R64: =IF(D64=""," ",'Main page'!$F$21-(D64)) -> 57 | S64: =IF(D64=""," ",VLOOKUP(R64,'Main page'!$E$29:'Main page'!$G$41,3,TRUE)) -> 55-59
B65: 64 | C65: F | D65: 1967 | E65: Section 6 | F65: Branch L | G65: 1 | H65: 75 | I65: 3 | J65: 46234.8 | K65: No | L65: N | M65: 46234.8 | N65: 23.58059016 | O65: 46128.93999 | P65: Full time | Q65: =IF(I65="","",IF(I65<='Main page'!$F$49,"Core staff","Senior staff")) -> Core staff | R65: =IF(D65=""," ",'Main page'!$F$21-(D65)) -> 45 | S65: =IF(D65=""," ",VLOOKUP(R65,'Main page'!$E$29:'Main page'!$G$41,3,TRUE)) -> 45-49
B66: 65 | C66: F | D66: 1962 | E66: Section 6 | F66: Branch L | G66: 1 | H66: 75 | I66: 7 | J66: 75260.7 | K66: No | L66: N | M66: =IFERROR(J66/G66," ") -> 75260.7 | N66: =IFERROR((M66/$U$4)/H66," ") -> 38.38432787 | O66: =IFERROR((N66*75)*26.083," ") -> 75088.38179 | P66: =IF(G66=0," ",IF(G66=1,"Full time","Part time")) -> Full time | Q66: =IF(I66="","",IF(I66<='Main page'!$F$49,"Core staff","Senior staff")) -> Senior staff | R66: =IF(D66=""," ",'Main page'!$F$21-(D66)) -> 50 | S66: =IF(D66=""," ",VLOOKUP(R66,'Main page'!$E$29:'Main page'!$G$41,3,TRUE)) -> 50-54
B67: 66 | C67: F | D67: 1965 | E67: Section 3 | F67: Branch F | G67: 1 | H67: 75 | I67: 2 | J67: 38599.2 | K67: No | L67: N | M67: 38599.2 | N67: 19.68629508 | O67: 38510.8226 | P67: Full time | Q67: =IF(I67="","",IF(I67<='Main page'!$F$49,"Core staff","Senior staff")) -> Core staff | R67: =IF(D67=""," ",'Main page'!$F$21-(D67)) -> 47 | S67: =IF(D67=""," ",VLOOKUP(R67,'Main page'!$E$29:'Main page'!$G$41,3,TRUE)) -> 45-49
B68: 67 | C68: M | D68: 1939 | E68: Section 1 | F68: Branch B | G68: 1 | H68: 75 | I68: 8 | J68: 105969.6 | K68: No | L68: Y | M68: 105969.6 | N68: 54.04642623 | O68: 105726.9702 | P68: Full time | Q68: =IF(I68="","",IF(I68<='Main page'!$F$49,"Core staff","Senior staff")) -> Senior staff | R68: =IF(D68=""," ",'Main page'!$F$21-(D68)) -> 73 | S68: =IF(D68=""," ",VLOOKUP(R68,'Main page'!$E$29:'Main page'!$G$41,3,TRUE)) -> 70 and over
B69: 68 | C69: M | D69: 1939 | E69: Section 4 | F69: Branch H | G69: 1 | H69: 75 | I69: 2 | J69: 50770.5 | K69: No | L69: N | M69: 50770.5 | N69: 25.89387978 | O69: 50654.25498 | P69: Full time | Q69: =IF(I69="","",IF(I69<='Main page'!$F$49,"Core staff","Senior staff")) -> Core staff | R69: =IF(D69=""," ",'Main page'!$F$21-(D69)) -> 73 | S69: =IF(D69=""," ",VLOOKUP(R69,'Main page'!$E$29:'Main page'!$G$41,3,TRUE)) -> 70 and over
B70: 69 | C70: M | D70: 1970 | E70: Section 3 | F70: Branch F | G70: 1 | H70: 75 | I70: 6 | J70: 80869.8 | K70: No | L70: N | M70: 80869.8 | N70: 41.24507104 | O70: 80684.63909 | P70: Full time | Q70: =IF(I70="","",IF(I70<='Main page'!$F$49,"Core staff","Senior staff")) -> Core staff | R70: =IF(D70=""," ",'Main page'!$F$21-(D70)) -> 42 | S70: =IF(D70=""," ",VLOOKUP(R70,'Main page'!$E$29:'Main page'!$G$41,3,TRUE)) -> 40-44
B71: 70 | C71: M | D71: 1954 | E71: Section 1 | F71: Branch A | G71: 1 | H71: 75 | I71: 6 | J71: 80392.4 | K71: No | L71: N | M71: 80392.4 | N71: 41.00158834 | O71: 80208.33216 | P71: Full time | Q71: =IF(I71="","",IF(I71<='Main page'!$F$49,"Core staff","Senior staff")) -> Core staff | R71: =IF(D71=""," ",'Main page'!$F$21-(D71)) -> 58 | S71: =IF(D71=""," ",VLOOKUP(R71,'Main page'!$E$29:'Main page'!$G$41,3,TRUE)) -> 55-59
B72: 71 | C72: M | D72: 1947 | E72: Section 6 | F72: Branch K | G72: 1 | H72: 75 | I72: 7 | J72: 93502.2 | K72: No | L72: N | M72: 93502.2 | N72: 47.68782514 | O72: 93288.11573 | P72: Full time | Q72: =IF(I72="","",IF(I72<='Main page'!$F$49,"Core staff","Senior staff")) -> Senior staff | R72: =IF(D72=""," ",'Main page'!$F$21-(D72)) -> 65 | S72: =IF(D72=""," ",VLOOKUP(R72,'Main page'!$E$29:'Main page'!$G$41,3,TRUE)) -> 65-69
B73: 72 | C73: M | D73: 1969 | E73: Section 1 | F73: Branch A | G73: 1 | H73: 75 | I73: 3 | J73: 54015.5 | K73: No | L73: N | M73: 54015.5 | N73: 27.54888889 | O73: 53891.82517 | P73: Full time | Q73: =IF(I73="","",IF(I73<='Main page'!$F$49,"Core staff","Senior staff")) -> Core staff | R73: =IF(D73=""," ",'Main page'!$F$21-(D73)) -> 43 | S73: =IF(D73=""," ",VLOOKUP(R73,'Main page'!$E$29:'Main page'!$G$41,3,TRUE)) -> 40-44
B74: 73 | C74: M | D74: 1933 | E74: Section 6 | F74: Branch L | G74: 0.5443569583 | H74: 75 | I74: 2 | J74: 50952 | K74: No | L74: N | M74: 93600.34665 | N74: 47.73788171 | O74: 93386.03766 | P74: Part time | Q74: =IF(I74="","",IF(I74<='Main page'!$F$49,"Core staff","Senior staff")) -> Core staff | R74: =IF(D74=""," ",'Main page'!$F$21-(D74)) -> 79 | S74: =IF(D74=""," ",VLOOKUP(R74,'Main page'!$E$29:'Main page'!$G$41,3,TRUE)) -> 70 and over
B75: 74 | C75: F | D75: 1975 | E75: Section 6 | F75: Branch K | G75: 1 | H75: 75 | I75: 5 | J75: 58484.7 | K75: No | L75: N | M75: 58484.7 | N75: 29.8282623 | O75: 58350.79241 | P75: Full time | Q75: =IF(I75="","",IF(I75<='Main page'!$F$49,"Core staff","Senior staff")) -> Core staff | R75: =IF(D75=""," ",'Main page'!$F$21-(D75)) -> 37 | S75: =IF(D75=""," ",VLOOKUP(R75,'Main page'!$E$29:'Main page'!$G$41,3,TRUE)) -> 35-39
B76: 75 | C76: F | D76: 1964 | E76: Section 2 | F76: Branch D | G76: 0.5615159786 | H76: 75 | I76: 2 | J76: 38101.5 | K76: No | L76: N | M76: 67854.70308 | N76: 34.60713454 | O76: 67699.34176 | P76: Part time | Q76: =IF(I76="","",IF(I76<='Main page'!$F$49,"Core staff","Senior staff")) -> Core staff | R76: =IF(D76=""," ",'Main page'!$F$21-(D76)) -> 48 | S76: =IF(D76=""," ",VLOOKUP(R76,'Main page'!$E$29:'Main page'!$G$41,3,TRUE)) -> 45-49
B77: 76 | C77: M | D77: 1979 | E77: Section 1 | F77: Branch A | G77: 1 | H77: 75 | I77: 3 | J77: 54464.3 | K77: No | L77: N | M77: 54464.3 | N77: 27.77778506 | O77: 54339.59759 | P77: Full time | Q77: =IF(I77="","",IF(I77<='Main page'!$F$49,"Core staff","Senior staff")) -> Core staff | R77: =IF(D77=""," ",'Main page'!$F$21-(D77)) -> 33 | S77: =IF(D77=""," ",VLOOKUP(R77,'Main page'!$E$29:'Main page'!$G$41,3,TRUE)) -> 30-34
B78: 77 | C78: M | D78: 1982 | E78: Section 6 | F78: Branch L | G78: 1 | H78: 75 | I78: 2 | J78: 49431.8 | K78: Yes | L78: N | M78: 49431.8 | N78: 25.2111184 | O78: 49318.62009 | P78: Full time | Q78: =IF(I78="","",IF(I78<='Main page'!$F$49,"Core staff","Senior staff")) -> Core staff | R78: =IF(D78=""," ",'Main page'!$F$21-(D78)) -> 30 | S78: =IF(D78=""," ",VLOOKUP(R78,'Main page'!$E$29:'Main page'!$G$41,3,TRUE)) -> 30-34
B79: 78 | C79: F | D79: 1946 | E79: Section 5 | F79: Branch I | G79: 1 | H79: 75 | I79: 2 | J79: 37953.9 | K79: No | L79: N | M79: 37953.9 | N79: 19.35718033 | O79: 37867.00009 | P79: Full time | Q79: =IF(I79="","",IF(I79<='Main page'!$F$49,"Core staff","Senior staff")) -> Core staff | R79: =IF(D79=""," ",'Main page'!$F$21-(D79)) -> 66 | S79: =IF(D79=""," ",VLOOKUP(R79,'Main page'!$E$29:'Main page'!$G$41,3,TRUE)) -> 65-69
B80: 79 | C80: F | D80: 1954 | E80: Section 5 | F80: Branch J | G80: 1 | H80: 75 | I80: 2 | J80: 39457.8 | K80: No | L80: N | M80: 39457.8 | N80: 20.12419672 | O80: 39367.45673 | P80: Full time | Q80: =IF(I80="","",IF(I80<='Main page'!$F$49,"Core staff","Senior staff")) -> Core staff | R80: =IF(D80=""," ",'Main page'!$F$21-(D80)) -> 58 | S80: =IF(D80=""," ",VLOOKUP(R80,'Main page'!$E$29:'Main page'!$G$41,3,TRUE)) -> 55-59
B81: 80 | C81: F | D81: 1983 | E81: Section 3 | F81: Branch E | G81: 1 | H81: 80 | I81: 7 | J81: 74151.9 | K81: No | L81: N | M81: 74151.9 | N81: 35.45514344 | O81: 69358.23798 | P81: Full time | Q81: =IF(I81="","",IF(I81<='Main page'!$F$49,"Core staff","Senior staff")) -> Senior staff | R81: =IF(D81=""," ",'Main page'!$F$21-(D81)) -> 29 | S81: =IF(D81=""," ",VLOOKUP(R81,'Main page'!$E$29:'Main page'!$G$41,3,TRUE)) -> 25-29
B82: 81 | C82: M | D82: 1937 | E82: Section 3 | F82: Branch E | G82: 1 | H82: 75 | I82: 4 | J82: 62045.5 | K82: No | L82: N | M82: 62045.5 | N82: 31.64433515 | O82: 61903.43954 | P82: Full time | Q82: =IF(I82="","",IF(I82<='Main page'!$F$49,"Core staff","Senior staff")) -> Core staff | R82: =IF(D82=""," ",'Main page'!$F$21-(D82)) -> 75 | S82: =IF(D82=""," ",VLOOKUP(R82,'Main page'!$E$29:'Main page'!$G$41,3,TRUE)) -> 70 and over
B83: 82 | C83: F | D83: 1945 | E83: Section 5 | F83: Branch J | G83: 1 | H83: 75 | I83: 3 | J83: 44753.4 | K83: No | L83: N | M83: 44753.4 | N83: 22.82504918 | O83: 44650.93183 | P83: Full time | Q83: =IF(I83="","",IF(I83<='Main page'!$F$49,"Core staff","Senior staff")) -> Core staff | R83: =IF(D83=""," ",'Main page'!$F$21-(D83)) -> 67 | S83: =IF(D83=""," ",VLOOKUP(R83,'Main page'!$E$29:'Main page'!$G$41,3,TRUE)) -> 65-69
B84: 83 | C84: F | D84: 1955 | E84: Section 3 | F84: Branch E | G84: 1 | H84: 75 | I84: 8 | J84: 93757 | K84: No | L84: N | M84: 93757 | N84: 47.81777778 | O84: 93542.33233 | P84: Full time | Q84: =IF(I84="","",IF(I84<='Main page'!$F$49,"Core staff","Senior staff")) -> Senior staff | R84: =IF(D84=""," ",'Main page'!$F$21-(D84)) -> 57 | S84: =IF(D84=""," ",VLOOKUP(R84,'Main page'!$E$29:'Main page'!$G$41,3,TRUE)) -> 55-59
B85: 84 | C85: F | D85: 1966 | E85: Section 1 | F85: Branch B | G85: 1 | H85: 75 | I85: 1 | J85: 33604.2 | K85: No | L85: N | M85: 33604.2 | N85: 17.1387541 | O85: 33527.25924 | P85: Full time | Q85: =IF(I85="","",IF(I85<='Main page'!$F$49,"Core staff","Senior staff")) -> Core staff | R85: =IF(D85=""," ",'Main page'!$F$21-(D85)) -> 46 | S85: =IF(D85=""," ",VLOOKUP(R85,'Main page'!$E$29:'Main page'!$G$41,3,TRUE)) -> 45-49
B86: 85 | C86: M | D86: 1944 | E86: Section 3 | F86: Branch F | G86: 1 | H86: 75 | I86: 5 | J86: 71360.3 | K86: No | L86: N | M86: 71360.3 | N86: 36.39505282 | O86: 71196.91221 | P86: Full time | Q86: =IF(I86="","",IF(I86<='Main page'!$F$49,"Core staff","Senior staff")) -> Core staff | R86: =IF(D86=""," ",'Main page'!$F$21-(D86)) -> 68 | S86: =IF(D86=""," ",VLOOKUP(R86,'Main page'!$E$29:'Main page'!$G$41,3,TRUE)) -> 65-69
B87: 86 | C87: F | D87: 1952 | E87: Section 1 | F87: Branch B | G87: 0.5384118922 | H87: 75 | I87: 1 | J87: 32469.3 | K87: No | L87: N | M87: 60305.68877 | N87: 30.75699973 | O87: 60167.61181 | P87: Part time | Q87: =IF(I87="","",IF(I87<='Main page'!$F$49,"Core staff","Senior staff")) -> Core staff | R87: =IF(D87=""," ",'Main page'!$F$21-(D87)) -> 60 | S87: =IF(D87=""," ",VLOOKUP(R87,'Main page'!$E$29:'Main page'!$G$41,3,TRUE)) -> 60-64
B88: 87 | C88: F | D88: 1961 | E88: Section 2 | F88: Branch C | G88: 0.7777452002 | H88: 75 | I88: 4 | J88: 49087.8 | K88: No | L88: N | M88: 63115.52934 | N88: 32.19006961 | O88: 62971.01892 | P88: Part time | Q88: =IF(I88="","",IF(I88<='Main page'!$F$49,"Core staff","Senior staff")) -> Core staff | R88: =IF(D88=""," ",'Main page'!$F$21-(D88)) -> 51 | S88: =IF(D88=""," ",VLOOKUP(R88,'Main page'!$E$29:'Main page'!$G$41,3,TRUE)) -> 50-54
B89: 88 | C89: F | D89: 1987 | E89: Section 6 | F89: Branch L | G89: 1 | H89: 75 | I89: 5 | J89: 57405.6 | K89: No | L89: N | M89: 57405.6 | N89: 29.27790164 | O89: 57274.16313 | P89: Full time | Q89: =IF(I89="","",IF(I89<='Main page'!$F$49,"Core staff","Senior staff")) -> Core staff | R89: =IF(D89=""," ",'Main page'!$F$21-(D89)) -> 25 | S89: =IF(D89=""," ",VLOOKUP(R89,'Main page'!$E$29:'Main page'!$G$41,3,TRUE)) -> 25-29
B90: 89 | C90: M | D90: 1942 | E90: Section 5 | F90: Branch I | G90: 0.5672410467 | H90: 75 | I90: 6 | J90: 83553.8 | K90: No | L90: N | M90: 147298.5788 | N90: 75.1249582 | O90: 146961.3214 | P90: Part time | Q90: =IF(I90="","",IF(I90<='Main page'!$F$49,"Core staff","Senior staff")) -> Core staff | R90: =IF(D90=""," ",'Main page'!$F$21-(D90)) -> 70 | S90: =IF(D90=""," ",VLOOKUP(R90,'Main page'!$E$29:'Main page'!$G$41,3,TRUE)) -> 70 and over
B91: 90 | C91: F | D91: 1969 | E91: Section 1 | F91: Branch B | G91: 0.7163430334 | H91: 75 | I91: 1 | J91: 34629.3 | K91: No | L91: N | M91: 48341.78373 | N91: 24.65519025 | O91: 48231.09954 | P91: Part time | Q91: =IF(I91="","",IF(I91<='Main page'!$F$49,"Core staff","Senior staff")) -> Core staff | R91: =IF(D91=""," ",'Main page'!$F$21-(D91)) -> 43 | S91: =IF(D91=""," ",VLOOKUP(R91,'Main page'!$E$29:'Main page'!$G$41,3,TRUE)) -> 40-44
B92: 91 | C92: M | D92: 1972 | E92: Section 1 | F92: Branch A | G92: 1 | H92: 75 | I92: 2 | J92: 47216.4 | K92: Yes | L92: Y | M92: 47216.4 | N92: 24.08122404 | O92: 47108.2925 | P92: Full time | Q92: =IF(I92="","",IF(I92<='Main page'!$F$49,"Core staff","Senior staff")) -> Core staff | R92: =IF(D92=""," ",'Main page'!$F$21-(D92)) -> 40 | S92: =IF(D92=""," ",VLOOKUP(R92,'Main page'!$E$29:'Main page'!$G$41,3,TRUE)) -> 40-44
B93: 92 | C93: F | D93: 1966 | E93: Section 5 | F93: Branch I | G93: 0.6596016835 | H93: 75 | I93: 1 | J93: 30145.5 | K93: No | L93: Y | M93: 45702.58196 | N93: 23.30914927 | O93: 45597.94053 | P93: Part time | Q93: =IF(I93="","",IF(I93<='Main page'!$F$49,"Core staff","Senior staff")) -> Core staff | R93: =IF(D93=""," ",'Main page'!$F$21-(D93)) -> 46 | S93: =IF(D93=""," ",VLOOKUP(R93,'Main page'!$E$29:'Main page'!$G$41,3,TRUE)) -> 45-49
B94: 93 | C94: F | D94: 1962 | E94: Section 1 | F94: Branch B | G94: 1 | H94: 75 | I94: 7 | J94: 75581.1 | K94: No | L94: N | M94: 75581.1 | N94: 38.5477377 | O94: 75408.04819 | P94: Full time | Q94: =IF(I94="","",IF(I94<='Main page'!$F$49,"Core staff","Senior staff")) -> Senior staff | R94: =IF(D94=""," ",'Main page'!$F$21-(D94)) -> 50 | S94: =IF(D94=""," ",VLOOKUP(R94,'Main page'!$E$29:'Main page'!$G$41,3,TRUE)) -> 50-54
B95: 94 | C95: M | D95: 1986 | E95: Section 2 | F95: Branch D | G95: 1 | H95: 80 | I95: 7 | J95: 92159.1 | K95: No | L95: N | M95: 92159.1 | N95: 44.06514344 | O95: 86201.33523 | P95: Full time | Q95: =IF(I95="","",IF(I95<='Main page'!$F$49,"Core staff","Senior staff")) -> Senior staff | R95: =IF(D95=""," ",'Main page'!$F$21-(D95)) -> 26 | S95: =IF(D95=""," ",VLOOKUP(R95,'Main page'!$E$29:'Main page'!$G$41,3,TRUE)) -> 25-29
B96: 95 | C96: F | D96: 1956 | E96: Section 4 | F96: Branch G | G96: 0.5948220741 | H96: 75 | I96: 3 | J96: 45211.5 | K96: No | L96: Y | M96: 76008.44348 | N96: 38.76569066 | O96: 75834.41322 | P96: Part time | Q96: =IF(I96="","",IF(I96<='Main page'!$F$49,"Core staff","Senior staff")) -> Core staff | R96: =IF(D96=""," ",'Main page'!$F$21-(D96)) -> 56 | S96: =IF(D96=""," ",VLOOKUP(R96,'Main page'!$E$29:'Main page'!$G$41,3,TRUE)) -> 55-59
B97: 96 | C97: F | D97: 1958 | E97: Section 3 | F97: Branch E | G97: 0.4778261888 | H97: 75 | I97: 1 | J97: 30707.1 | K97: No | L97: N | M97: 64264.16283 | N97: 32.77589361 | O97: 64117.02248 | P97: Part time | Q97: =IF(I97="","",IF(I97<='Main page'!$F$49,"Core staff","Senior staff")) -> Core staff | R97: =IF(D97=""," ",'Main page'!$F$21-(D97)) -> 54 | S97: =IF(D97=""," ",VLOOKUP(R97,'Main page'!$E$29:'Main page'!$G$41,3,TRUE)) -> 50-54
B98: 97 | C98: F | D98: 1973 | E98: Section 1 | F98: Branch B | G98: 0.7020778945 | H98: 75 | I98: 3 | J98: 47291.4 | K98: No | L98: N | M98: 67359.19244 | N98: 34.35441509 | O98: 67204.96565 | P98: Part time | Q98: =IF(I98="","",IF(I98<='Main page'!$F$49,"Core staff","Senior staff")) -> Core staff | R98: =IF(D98=""," ",'Main page'!$F$21-(D98)) -> 39 | S98: =IF(D98=""," ",VLOOKUP(R98,'Main page'!$E$29:'Main page'!$G$41,3,TRUE)) -> 35-39
B99: 98 | C99: F | D99: 1948 | E99: Section 4 | F99: Branch G | G99: 1 | H99: 75 | I99: 4 | J99: 51439.5 | K99: Yes | L99: N | M99: 51439.5 | N99: 26.23508197 | O99: 51321.72322 | P99: Full time | Q99: =IF(I99="","",IF(I99<='Main page'!$F$49,"Core staff","Senior staff")) -> Core staff | R99: =IF(D99=""," ",'Main page'!$F$21-(D99)) -> 64 | S99: =IF(D99=""," ",VLOOKUP(R99,'Main page'!$E$29:'Main page'!$G$41,3,TRUE)) -> 60-64
B100: 99 | C100: M | D100: 1977 | E100: Section 1 | F100: Branch B | G100: 1 | H100: 75 | I100: 4 | J100: 61564.8 | K100: No | L100: N | M100: 61564.8 | N100: 31.3991694 | O100: 61423.84016 | P100: Full time | Q100: =IF(I100="","",IF(I100<='Main page'!$F$49,"Core staff","Senior staff")) -> Core staff | R100: =IF(D100=""," ",'Main page'!$F$21-(D100)) -> 35 | S100: =IF(D100=""," ",VLOOKUP(R100,'Main page'!$E$29:'Main page'!$G$41,3,TRUE)) -> 35-39
B101: 100 | C101: M | D101: 1936 | E101: Section 6 | F101: Branch L | G101: 1 | H101: 80 | I101: 2 | J101: 46255 | K101: No | L101: N | M101: 46255 | N101: 22.11646175 | O101: 43264.77538 | P101: Full time | Q101: =IF(I101="","",IF(I101<='Main page'!$F$49,"Core staff","Senior staff")) -> Core staff | R101: =IF(D101=""," ",'Main page'!$F$21-(D101)) -> 76 | S101: =IF(D101=""," ",VLOOKUP(R101,'Main page'!$E$29:'Main page'!$G$41,3,TRUE)) -> 70 and over
B102: 101 | C102: F | D102: 1965 | E102: Section 6 | F102: Branch L | G102: 1 | H102: 75 | I102: 3 | J102: 44742.6 | K102: Yes | L102: N | M102: 44742.6 | N102: 22.81954098 | O102: 44640.15656 | P102: Full time | Q102: =IF(I102="","",IF(I102<='Main page'!$F$49,"Core staff","Senior staff")) -> Core staff | R102: =IF(D102=""," ",'Main page'!$F$21-(D102)) -> 47 | S102: =IF(D102=""," ",VLOOKUP(R102,'Main page'!$E$29:'Main page'!$G$41,3,TRUE)) -> 45-49
B103: 102 | C103: F | D103: 1972 | E103: Section 4 | F103: Branch G | G103: 1 | H103: 75 | I103: 5 | J103: 60182.1 | K103: No | L103: N | M103: 60182.1 | N103: 30.69396721 | O103: 60044.30601 | P103: Full time | Q103: =IF(I103="","",IF(I103<='Main page'!$F$49,"Core staff","Senior staff")) -> Core staff | R103: =IF(D103=""," ",'Main page'!$F$21-(D103)) -> 40 | S103: =IF(D103=""," ",VLOOKUP(R103,'Main page'!$E$29:'Main page'!$G$41,3,TRUE)) -> 40-44
B104: 103 | C104: M | D104: 1949 | E104: Section 2 | F104: Branch C | G104: 1 | H104: 75 | I104: 2 | J104: 49292.1 | K104: No | L104: Y | M104: 49292.1 | N104: 25.13986885 | O104: 49179.23995 | P104: Full time | Q104: =IF(I104="","",IF(I104<='Main page'!$F$49,"Core staff","Senior staff")) -> Core staff | R104: =IF(D104=""," ",'Main page'!$F$21-(D104)) -> 63 | S104: =IF(D104=""," ",VLOOKUP(R104,'Main page'!$E$29:'Main page'!$G$41,3,TRUE)) -> 60-64
B105: 104 | C105: F | D105: 1974 | E105: Section 1 | F105: Branch B | G105: 1 | H105: 75 | I105: 4 | J105: 51352.2 | K105: No | L105: N | M105: 51352.2 | N105: 26.19055738 | O105: 51234.6231 | P105: Full time | Q105: =IF(I105="","",IF(I105<='Main page'!$F$49,"Core staff","Senior staff")) -> Core staff | R105: =IF(D105=""," ",'Main page'!$F$21-(D105)) -> 38 | S105: =IF(D105=""," ",VLOOKUP(R105,'Main page'!$E$29:'Main page'!$G$41,3,TRUE)) -> 35-39
B106: 105 | C106: F | D106: 1974 | E106: Section 6 | F106: Branch L | G106: 1 | H106: 80 | I106: 5 | J106: 56067.3 | K106: Yes | L106: N | M106: 56067.3 | N106: 26.80813525 | O106: 52442.74437 | P106: Full time | Q106: =IF(I106="","",IF(I106<='Main page'!$F$49,"Core staff","Senior staff")) -> Core staff | R106: =IF(D106=""," ",'Main page'!$F$21-(D106)) -> 38 | S106: =IF(D106=""," ",VLOOKUP(R106,'Main page'!$E$29:'Main page'!$G$41,3,TRUE)) -> 35-39
B107: 106 | C107: M | D107: 1966 | E107: Section 4 | F107: Branch G | G107: 1 | H107: 75 | I107: 7 | J107: 91718 | K107: No | L107: Y | M107: 91718 | N107: 46.77785064 | O107: 91508.00086 | P107: Full time | Q107: =IF(I107="","",IF(I107<='Main page'!$F$49,"Core staff","Senior staff")) -> Senior staff | R107: =IF(D107=""," ",'Main page'!$F$21-(D107)) -> 46 | S107: =IF(D107=""," ",VLOOKUP(R107,'Main page'!$E$29:'Main page'!$G$41,3,TRUE)) -> 45-49
B108: 107 | C108: M | D108: 1968 | E108: Section 3 | F108: Branch E | G108: 1 | H108: 80 | I108: 8 | J108: 106616.4 | K108: No | L108: N | M108: 106616.4 | N108: 50.97778689 | O108: 99724.02115 | P108: Full time | Q108: =IF(I108="","",IF(I108<='Main page'!$F$49,"Core staff","Senior staff")) -> Senior staff | R108: =IF(D108=""," ",'Main page'!$F$21-(D108)) -> 44 | S108: =IF(D108=""," ",VLOOKUP(R108,'Main page'!$E$29:'Main page'!$G$41,3,TRUE)) -> 40-44
B109: 108 | C109: M | D109: 1938 | E109: Section 6 | F109: Branch L | G109: 1 | H109: 80 | I109: 4 | J109: 62144.5 | K109: No | L109: N | M109: 62144.5 | N109: 29.71390027 | O109: 58127.07456 | P109: Full time | Q109: =IF(I109="","",IF(I109<='Main page'!$F$49,"Core staff","Senior staff")) -> Core staff | R109: =IF(D109=""," ",'Main page'!$F$21-(D109)) -> 74 | S109: =IF(D109=""," ",VLOOKUP(R109,'Main page'!$E$29:'Main page'!$G$41,3,TRUE)) -> 70 and over
B110: 109 | C110: M | D110: 1937 | E110: Section 3 | F110: Branch E | G110: 1 | H110: 75 | I110: 2 | J110: 48688.2 | K110: No | L110: N | M110: 48688.2 | N110: 24.83186885 | O110: 48576.72265 | P110: Full time | Q110: =IF(I110="","",IF(I110<='Main page'!$F$49,"Core staff","Senior staff")) -> Core staff | R110: =IF(D110=""," ",'Main page'!$F$21-(D110)) -> 75 | S110: =IF(D110=""," ",VLOOKUP(R110,'Main page'!$E$29:'Main page'!$G$41,3,TRUE)) -> 70 and over
B111: 110 | C111: F | D111: 1973 | E111: Section 1 | F111: Branch B | G111: 1 | H111: 75 | I111: 7 | J111: 75699 | K111: Yes | L111: N | M111: 75699 | N111: 38.60786885 | O111: 75525.67825 | P111: Full time | Q111: =IF(I111="","",IF(I111<='Main page'!$F$49,"Core staff","Senior staff")) -> Senior staff | R111: =IF(D111=""," ",'Main page'!$F$21-(D111)) -> 39 | S111: =IF(D111=""," ",VLOOKUP(R111,'Main page'!$E$29:'Main page'!$G$41,3,TRUE)) -> 35-39
B112: 111 | C112: M | D112: 1933 | E112: Section 1 | F112: Branch A | G112: 1 | H112: 75 | I112: 5 | J112: 67827.1 | K112: No | L112: N | M112: 67827.1 | N112: 34.59305647 | O112: 67671.80189 | P112: Full time | Q112: =IF(I112="","",IF(I112<='Main page'!$F$49,"Core staff","Senior staff")) -> Core staff | R112: =IF(D112=""," ",'Main page'!$F$21-(D112)) -> 79 | S112: =IF(D112=""," ",VLOOKUP(R112,'Main page'!$E$29:'Main page'!$G$41,3,TRUE)) -> 70 and over
B113: 112 | C113: F | D113: 1959 | E113: Section 1 | F113: Branch B | G113: 1 | H113: 80 | I113: 4 | J113: 50162.4 | K113: No | L113: N | M113: 50162.4 | N113: 23.9847541 | O113: 46919.57559 | P113: Full time | Q113: =IF(I113="","",IF(I113<='Main page'!$F$49,"Core staff","Senior staff")) -> Core staff | R113: =IF(D113=""," ",'Main page'!$F$21-(D113)) -> 53 | S113: =IF(D113=""," ",VLOOKUP(R113,'Main page'!$E$29:'Main page'!$G$41,3,TRUE)) -> 50-54
B114: 113 | C114: M | D114: 1954 | E114: Section 2 | F114: Branch C | G114: 1 | H114: 75 | I114: 5 | J114: 72777.1 | K114: No | L114: Y | M114: 72777.1 | N114: 37.11764663 | O114: 72610.46828 | P114: Full time | Q114: =IF(I114="","",IF(I114<='Main page'!$F$49,"Core staff","Senior staff")) -> Core staff | R114: =IF(D114=""," ",'Main page'!$F$21-(D114)) -> 58 | S114: =IF(D114=""," ",VLOOKUP(R114,'Main page'!$E$29:'Main page'!$G$41,3,TRUE)) -> 55-59
B115: 114 | C115: M | D115: 1933 | E115: Section 6 | F115: Branch L | G115: 1 | H115: 75 | I115: 6 | J115: 85811 | K115: No | L115: N | M115: 85811 | N115: 43.76517304 | O115: 85614.52563 | P115: Full time | Q115: =IF(I115="","",IF(I115<='Main page'!$F$49,"Core staff","Senior staff")) -> Core staff | R115: =IF(D115=""," ",'Main page'!$F$21-(D115)) -> 79 | S115: =IF(D115=""," ",VLOOKUP(R115,'Main page'!$E$29:'Main page'!$G$41,3,TRUE)) -> 70 and over
B116: 115 | C116: F | D116: 1960 | E116: Section 1 | F116: Branch A | G116: 1 | H116: 75 | I116: 9 | J116: 111103 | K116: No | L116: N | M116: 111103 | N116: 56.66455373 | O116: 110848.6166 | P116: Full time | Q116: =IF(I116="","",IF(I116<='Main page'!$F$49,"Core staff","Senior staff")) -> Senior staff | R116: =IF(D116=""," ",'Main page'!$F$21-(D116)) -> 52 | S116: =IF(D116=""," ",VLOOKUP(R116,'Main page'!$E$29:'Main page'!$G$41,3,TRUE)) -> 50-54
B117: 116 | C117: M | D117: 1973 | E117: Section 6 | F117: Branch K | G117: 1 | H117: 75 | I117: 2 | J117: 49687 | K117: No | L117: N | M117: 49687 | N117: 25.34127505 | O117: 49573.23578 | P117: Full time | Q117: =IF(I117="","",IF(I117<='Main page'!$F$49,"Core staff","Senior staff")) -> Core staff | R117: =IF(D117=""," ",'Main page'!$F$21-(D117)) -> 39 | S117: =IF(D117=""," ",VLOOKUP(R117,'Main page'!$E$29:'Main page'!$G$41,3,TRUE)) -> 35-39
B118: 117 | C118: F | D118: 1965 | E118: Section 1 | F118: Branch A | G118: 0.7830409709 | H118: 75 | I118: 6 | J118: 69606 | K118: No | L118: N | M118: 88891.9004 | N118: 45.33648837 | O118: 88688.37195 | P118: Part time | Q118: =IF(I118="","",IF(I118<='Main page'!$F$49,"Core staff","Senior staff")) -> Core staff | R118: =IF(D118=""," ",'Main page'!$F$21-(D118)) -> 47 | S118: =IF(D118=""," ",VLOOKUP(R118,'Main page'!$E$29:'Main page'!$G$41,3,TRUE)) -> 45-49
B119: 118 | C119: F | D119: 1952 | E119: Section 4 | F119: Branch G | G119: 1 | H119: 75 | I119: 7 | J119: 75561.3 | K119: No | L119: N | M119: 75561.3 | N119: 38.53763934 | O119: 75388.29353 | P119: Full time | Q119: =IF(I119="","",IF(I119<='Main page'!$F$49,"Core staff","Senior staff")) -> Senior staff | R119: =IF(D119=""," ",'Main page'!$F$21-(D119)) -> 60 | S119: =IF(D119=""," ",VLOOKUP(R119,'Main page'!$E$29:'Main page'!$G$41,3,TRUE)) -> 60-64
B120: 119 | C120: M | D120: 1984 | E120: Section 3 | F120: Branch E | G120: 1 | H120: 75 | I120: 6 | J120: 85202.7 | K120: No | L120: N | M120: 85202.7 | N120: 43.45492896 | O120: 85007.61841 | P120: Full time | Q120: =IF(I120="","",IF(I120<='Main page'!$F$49,"Core staff","Senior staff")) -> Core staff | R120: =IF(D120=""," ",'Main page'!$F$21-(D120)) -> 28 | S120: =IF(D120=""," ",VLOOKUP(R120,'Main page'!$E$29:'Main page'!$G$41,3,TRUE)) -> 25-29
B121: 120 | C121: M | D121: 1937 | E121: Section 2 | F121: Branch D | G121: 1 | H121: 75 | I121: 7 | J121: 93471.4 | K121: Yes | L121: Y | M121: 93471.4 | N121: 47.67211658 | O121: 93257.38625 | P121: Full time | Q121: =IF(I121="","",IF(I121<='Main page'!$F$49,"Core staff","Senior staff")) -> Senior staff | R121: =IF(D121=""," ",'Main page'!$F$21-(D121)) -> 75 | S121: =IF(D121=""," ",VLOOKUP(R121,'Main page'!$E$29:'Main page'!$G$41,3,TRUE)) -> 70 and over
B122: 121 | C122: M | D122: 1971 | E122: Section 4 | F122: Branch H | G122: 1 | H122: 75 | I122: 4 | J122: 62566.9 | K122: No | L122: N | M122: 62566.9 | N122: 31.91025865 | O122: 62423.64573 | P122: Full time | Q122: =IF(I122="","",IF(I122<='Main page'!$F$49,"Core staff","Senior staff")) -> Core staff | R122: =IF(D122=""," ",'Main page'!$F$21-(D122)) -> 41 | S122: =IF(D122=""," ",VLOOKUP(R122,'Main page'!$E$29:'Main page'!$G$41,3,TRUE)) -> 40-44
B123: 122 | C123: M | D123: 1957 | E123: Section 3 | F123: Branch E | G123: 1 | H123: 75 | I123: 4 | J123: 63027.8 | K123: Yes | L123: N | M123: 63027.8 | N123: 32.14532605 | O123: 62883.49045 | P123: Full time | Q123: =IF(I123="","",IF(I123<='Main page'!$F$49,"Core staff","Senior staff")) -> Core staff | R123: =IF(D123=""," ",'Main page'!$F$21-(D123)) -> 55 | S123: =IF(D123=""," ",VLOOKUP(R123,'Main page'!$E$29:'Main page'!$G$41,3,TRUE)) -> 55-59
B124: 123 | C124: M | D124: 1948 | E124: Section 5 | F124: Branch J | G124: 1 | H124: 80 | I124: 6 | J124: 78265 | K124: No | L124: N | M124: 78265 | N124: 37.42178962 | O124: 73205.44039 | P124: Full time | Q124: =IF(I124="","",IF(I124<='Main page'!$F$49,"Core staff","Senior staff")) -> Core staff | R124: =IF(D124=""," ",'Main page'!$F$21-(D124)) -> 64 | S124: =IF(D124=""," ",VLOOKUP(R124,'Main page'!$E$29:'Main page'!$G$41,3,TRUE)) -> 60-64
B125: 124 | C125: F | D125: 1975 | E125: Section 3 | F125: Branch F | G125: 1 | H125: 80 | I125: 4 | J125: 50534.1 | K125: No | L125: N | M125: 50534.1 | N125: 24.16247951 | O125: 47267.24648 | P125: Full time | Q125: =IF(I125="","",IF(I125<='Main page'!$F$49,"Core staff","Senior staff")) -> Core staff | R125: =IF(D125=""," ",'Main page'!$F$21-(D125)) -> 37 | S125: =IF(D125=""," ",VLOOKUP(R125,'Main page'!$E$29:'Main page'!$G$41,3,TRUE)) -> 35-39
B126: 125 | C126: M | D126: 1954 | E126: Section 6 | F126: Branch L | G126: 1 | H126: 75 | I126: 3 | J126: 55370.7 | K126: No | L126: N | M126: 55370.7 | N126: 28.24006557 | O126: 55243.92228 | P126: Full time | Q126: =IF(I126="","",IF(I126<='Main page'!$F$49,"Core staff","Senior staff")) -> Core staff | R126: =IF(D126=""," ",'Main page'!$F$21-(D126)) -> 58 | S126: =IF(D126=""," ",VLOOKUP(R126,'Main page'!$E$29:'Main page'!$G$41,3,TRUE)) -> 55-59
B127: 126 | C127: M | D127: 1962 | E127: Section 2 | F127: Branch C | G127: 1 | H127: 75 | I127: 3 | J127: 55773.3 | K127: No | L127: N | M127: 55773.3 | N127: 28.44539891 | O127: 55645.60048 | P127: Full time | Q127: =IF(I127="","",IF(I127<='Main page'!$F$49,"Core staff","Senior staff")) -> Core staff | R127: =IF(D127=""," ",'Main page'!$F$21-(D127)) -> 50 | S127: =IF(D127=""," ",VLOOKUP(R127,'Main page'!$E$29:'Main page'!$G$41,3,TRUE)) -> 50-54
B128: 127 | C128: F | D128: 1976 | E128: Section 2 | F128: Branch D | G128: 1 | H128: 75 | I128: 7 | J128: 74767.5 | K128: No | L128: N | M128: 74767.5 | N128: 38.13278689 | O128: 74596.31102 | P128: Full time | Q128: =IF(I128="","",IF(I128<='Main page'!$F$49,"Core staff","Senior staff")) -> Senior staff | R128: =IF(D128=""," ",'Main page'!$F$21-(D128)) -> 36 | S128: =IF(D128=""," ",VLOOKUP(R128,'Main page'!$E$29:'Main page'!$G$41,3,TRUE)) -> 35-39
B129: 128 | C129: M | D129: 1961 | E129: Section 4 | F129: Branch G | G129: 1 | H129: 75 | I129: 6 | J129: 81991.8 | K129: No | L129: N | M129: 81991.8 | N129: 41.81731148 | O129: 81804.07014 | P129: Full time | Q129: =IF(I129="","",IF(I129<='Main page'!$F$49,"Core staff","Senior staff")) -> Core staff | R129: =IF(D129=""," ",'Main page'!$F$21-(D129)) -> 51 | S129: =IF(D129=""," ",VLOOKUP(R129,'Main page'!$E$29:'Main page'!$G$41,3,TRUE)) -> 50-54
B130: 129 | C130: F | D130: 1979 | E130: Section 1 | F130: Branch B | G130: 1 | H130: 75 | I130: 3 | J130: 46137.6 | K130: No | L130: N | M130: =IFERROR(J130/G130," ") -> 46137.6 | N130: =IFERROR((M130/$U$4)/H130," ") -> 23.53101639 | O130: =IFERROR((N130*75)*26.083," ") -> 46031.96254 | P130: =IF(G130=0," ",IF(G130=1,"Full time","Part time")) -> Full time | Q130: =IF(I130="","",IF(I130<='Main page'!$F$49,"Core staff","Senior staff")) -> Core staff | R130: =IF(D130=""," ",'Main page'!$F$21-(D130)) -> 33 | S130: =IF(D130=""," ",VLOOKUP(R130,'Main page'!$E$29:'Main page'!$G$41,3,TRUE)) -> 30-34
B131: 130 | C131: M | D131: 1964 | E131: Section 4 | F131: Branch G | G131: 1 | H131: 80 | I131: 7 | J131: 90516.8 | K131: No | L131: N | M131: 90516.8 | N131: 43.27989071 | O131: 84665.2042 | P131: Full time | Q131: =IF(I131="","",IF(I131<='Main page'!$F$49,"Core staff","Senior staff")) -> Senior staff | R131: =IF(D131=""," ",'Main page'!$F$21-(D131)) -> 48 | S131: =IF(D131=""," ",VLOOKUP(R131,'Main page'!$E$29:'Main page'!$G$41,3,TRUE)) -> 45-49
B132: 131 | C132: M | D132: 1970 | E132: Section 1 | F132: Branch B | G132: 1 | H132: 75 | I132: 2 | J132: 49083.1 | K132: No | L132: N | M132: 49083.1 | N132: 25.03327505 | O132: 48970.71848 | P132: Full time | Q132: =IF(I132="","",IF(I132<='Main page'!$F$49,"Core staff","Senior staff")) -> Core staff | R132: =IF(D132=""," ",'Main page'!$F$21-(D132)) -> 42 | S132: =IF(D132=""," ",VLOOKUP(R132,'Main page'!$E$29:'Main page'!$G$41,3,TRUE)) -> 40-44
B133: 132 | C133: M | D133: 1966 | E133: Section 1 | F133: Branch B | G133: 1 | H133: 75 | I133: 4 | J133: 60163.4 | K133: No | L133: N | M133: 60163.4 | N133: 30.68442987 | O133: 60025.64883 | P133: Full time | Q133: =IF(I133="","",IF(I133<='Main page'!$F$49,"Core staff","Senior staff")) -> Core staff | R133: =IF(D133=""," ",'Main page'!$F$21-(D133)) -> 46 | S133: =IF(D133=""," ",VLOOKUP(R133,'Main page'!$E$29:'Main page'!$G$41,3,TRUE)) -> 45-49
B134: 133 | C134: F | D134: 1952 | E134: Section 5 | F134: Branch I | G134: 0.5153709575 | H134: 80 | I134: 3 | J134: 46653.3 | K134: No | L134: N | M134: 90523.72727 | N134: 43.28320293 | O134: 84671.68365 | P134: Part time | Q134: =IF(I134="","",IF(I134<='Main page'!$F$49,"Core staff","Senior staff")) -> Core staff | R134: =IF(D134=""," ",'Main page'!$F$21-(D134)) -> 60 | S134: =IF(D134=""," ",VLOOKUP(R134,'Main page'!$E$29:'Main page'!$G$41,3,TRUE)) -> 60-64
B135: 134 | C135: M | D135: 1959 | E135: Section 3 | F135: Branch E | G135: 1 | H135: 80 | I135: 7 | J135: 92548.5 | K135: No | L135: N | M135: 92548.5 | N135: 44.25133197 | O135: 86565.56188 | P135: Full time | Q135: =IF(I135="","",IF(I135<='Main page'!$F$49,"Core staff","Senior staff")) -> Senior staff | R135: =IF(D135=""," ",'Main page'!$F$21-(D135)) -> 53 | S135: =IF(D135=""," ",VLOOKUP(R135,'Main page'!$E$29:'Main page'!$G$41,3,TRUE)) -> 50-54
B136: 135 | C136: M | D136: 1964 | E136: Section 3 | F136: Branch E | G136: 1 | H136: 75 | I136: 4 | J136: 61816.7 | K136: No | L136: N | M136: 61816.7 | N136: 31.52764299 | O136: 61675.1634 | P136: Full time | Q136: =IF(I136="","",IF(I136<='Main page'!$F$49,"Core staff","Senior staff")) -> Core staff | R136: =IF(D136=""," ",'Main page'!$F$21-(D136)) -> 48 | S136: =IF(D136=""," ",VLOOKUP(R136,'Main page'!$E$29:'Main page'!$G$41,3,TRUE)) -> 45-49
B137: 136 | C137: F | D137: 1956 | E137: Section 1 | F137: Branch B | G137: 1 | H137: 75 | I137: 4 | J137: 51499.8 | K137: No | L137: N | M137: 51499.8 | N137: 26.26583607 | O137: 51381.88516 | P137: Full time | Q137: =IF(I137="","",IF(I137<='Main page'!$F$49,"Core staff","Senior staff")) -> Core staff | R137: =IF(D137=""," ",'Main page'!$F$21-(D137)) -> 56 | S137: =IF(D137=""," ",VLOOKUP(R137,'Main page'!$E$29:'Main page'!$G$41,3,TRUE)) -> 55-59
B138: 137 | C138: M | D138: 1984 | E138: Section 2 | F138: Branch D | G138: 0.5824061197 | H138: 75 | I138: 7 | J138: 90928.2 | K138: No | L138: N | M138: 156125.0765 | N138: 79.62663283 | O138: 155767.6098 | P138: Part time | Q138: =IF(I138="","",IF(I138<='Main page'!$F$49,"Core staff","Senior staff")) -> Senior staff | R138: =IF(D138=""," ",'Main page'!$F$21-(D138)) -> 28 | S138: =IF(D138=""," ",VLOOKUP(R138,'Main page'!$E$29:'Main page'!$G$41,3,TRUE)) -> 25-29
B139: 138 | C139: F | D139: 1986 | E139: Section 3 | F139: Branch E | G139: 1 | H139: 80 | I139: 6 | J139: 64537.2 | K139: Yes | L139: N | M139: 64537.2 | N139: 30.85795082 | O139: 60365.09484 | P139: Full time | Q139: =IF(I139="","",IF(I139<='Main page'!$F$49,"Core staff","Senior staff")) -> Core staff | R139: =IF(D139=""," ",'Main page'!$F$21-(D139)) -> 26 | S139: =IF(D139=""," ",VLOOKUP(R139,'Main page'!$E$29:'Main page'!$G$41,3,TRUE)) -> 25-29
B140: 139 | C140: F | D140: 1980 | E140: Section 2 | F140: Branch D | G140: 1 | H140: 75 | I140: 3 | J140: 44362.8 | K140: No | L140: N | M140: 44362.8 | N140: 22.62583607 | O140: 44261.22616 | P140: Full time | Q140: =IF(I140="","",IF(I140<='Main page'!$F$49,"Core staff","Senior staff")) -> Core staff | R140: =IF(D140=""," ",'Main page'!$F$21-(D140)) -> 32 | S140: =IF(D140=""," ",VLOOKUP(R140,'Main page'!$E$29:'Main page'!$G$41,3,TRUE)) -> 30-34
B141: 140 | C141: F | D141: 1955 | E141: Section 1 | F141: Branch B | G141: 0.4171519559 | H141: 75 | I141: 6 | J141: 67176.9 | K141: No | L141: N | M141: 161037.0011 | N141: 82.13180386 | O141: 160668.288 | P141: Part time | Q141: =IF(I141="","",IF(I141<='Main page'!$F$49,"Core staff","Senior staff")) -> Core staff | R141: =IF(D141=""," ",'Main page'!$F$21-(D141)) -> 57 | S141: =IF(D141=""," ",VLOOKUP(R141,'Main page'!$E$29:'Main page'!$G$41,3,TRUE)) -> 55-59
B142: 141 | C142: M | D142: 1959 | E142: Section 4 | F142: Branch G | G142: 1 | H142: 75 | I142: 3 | J142: 55418 | K142: No | L142: N | M142: 55418 | N142: 28.26418944 | O142: 55291.11398 | P142: Full time | Q142: =IF(I142="","",IF(I142<='Main page'!$F$49,"Core staff","Senior staff")) -> Core staff | R142: =IF(D142=""," ",'Main page'!$F$21-(D142)) -> 53 | S142: =IF(D142=""," ",VLOOKUP(R142,'Main page'!$E$29:'Main page'!$G$41,3,TRUE)) -> 50-54
B143: 142 | C143: F | D143: 1965 | E143: Section 1 | F143: Branch A | G143: 1 | H143: 75 | I143: 3 | J143: 46076.4 | K143: No | L143: N | M143: 46076.4 | N143: 23.49980328 | O143: 45970.90267 | P143: Full time | Q143: =IF(I143="","",IF(I143<='Main page'!$F$49,"Core staff","Senior staff")) -> Core staff | R143: =IF(D143=""," ",'Main page'!$F$21-(D143)) -> 47 | S143: =IF(D143=""," ",VLOOKUP(R143,'Main page'!$E$29:'Main page'!$G$41,3,TRUE)) -> 45-49
B144: 143 | C144: F | D144: 1980 | E144: Section 2 | F144: Branch C | G144: 0.65242342 | H144: 75 | I144: 2 | J144: 40235.4 | K144: No | L144: N | M144: 61670.68619 | N144: 31.45317328 | O144: 61529.48391 | P144: Part time | Q144: =IF(I144="","",IF(I144<='Main page'!$F$49,"Core staff","Senior staff")) -> Core staff | R144: =IF(D144=""," ",'Main page'!$F$21-(D144)) -> 32 | S144: =IF(D144=""," ",VLOOKUP(R144,'Main page'!$E$29:'Main page'!$G$41,3,TRUE)) -> 30-34
B145: 144 | C145: F | D145: 1969 | E145: Section 2 | F145: Branch D | G145: 0.7115363101 | H145: 75 | I145: 1 | J145: 34880.4 | K145: No | L145: N | M145: 49021.25092 | N145: 25.00173089 | O145: 48909.01101 | P145: Part time | Q145: =IF(I145="","",IF(I145<='Main page'!$F$49,"Core staff","Senior staff")) -> Core staff | R145: =IF(D145=""," ",'Main page'!$F$21-(D145)) -> 43 | S145: =IF(D145=""," ",VLOOKUP(R145,'Main page'!$E$29:'Main page'!$G$41,3,TRUE)) -> 40-44
B146: 145 | C146: F | D146: 1946 | E146: Section 3 | F146: Branch F | G146: 0.7340957808 | H146: 75 | I146: 1 | J146: 35923.5 | K146: No | L146: N | M146: 48935.7124 | N146: 24.95810468 | O146: 48823.66833 | P146: Part time | Q146: =IF(I146="","",IF(I146<='Main page'!$F$49,"Core staff","Senior staff")) -> Core staff | R146: =IF(D146=""," ",'Main page'!$F$21-(D146)) -> 66 | S146: =IF(D146=""," ",VLOOKUP(R146,'Main page'!$E$29:'Main page'!$G$41,3,TRUE)) -> 65-69
B147: 146 | C147: F | D147: 1951 | E147: Section 4 | F147: Branch G | G147: 1 | H147: 80 | I147: 3 | J147: 44789.4 | K147: Yes | L147: Y | M147: 44789.4 | N147: 21.41569672 | O147: 41893.92132 | P147: Full time | Q147: =IF(I147="","",IF(I147<='Main page'!$F$49,"Core staff","Senior staff")) -> Core staff | R147: =IF(D147=""," ",'Main page'!$F$21-(D147)) -> 61 | S147: =IF(D147=""," ",VLOOKUP(R147,'Main page'!$E$29:'Main page'!$G$41,3,TRUE)) -> 60-64
B148: 147 | C148: F | D148: 1973 | E148: Section 3 | F148: Branch F | G148: 1 | H148: 75 | I148: 8 | J148: 94357 | K148: No | L148: N | M148: 94357 | N148: 48.12378871 | O148: 94140.95856 | P148: Full time | Q148: =IF(I148="","",IF(I148<='Main page'!$F$49,"Core staff","Senior staff")) -> Senior staff | R148: =IF(D148=""," ",'Main page'!$F$21-(D148)) -> 39 | S148: =IF(D148=""," ",VLOOKUP(R148,'Main page'!$E$29:'Main page'!$G$41,3,TRUE)) -> 35-39
B149: 148 | C149: F | D149: 1988 | E149: Section 3 | F149: Branch F | G149: 1 | H149: 75 | I149: 5 | J149: 56215.8 | K149: Yes | L149: N | M149: 56215.8 | N149: 28.67108197 | O149: 56087.08732 | P149: Full time | Q149: =IF(I149="","",IF(I149<='Main page'!$F$49,"Core staff","Senior staff")) -> Core staff | R149: =IF(D149=""," ",'Main page'!$F$21-(D149)) -> 24 | S149: =IF(D149=""," ",VLOOKUP(R149,'Main page'!$E$29:'Main page'!$G$41,3,TRUE)) -> 20-24
B150: 149 | C150: F | D150: 1987 | E150: Section 3 | F150: Branch F | G150: 1 | H150: 75 | I150: 5 | J150: 55530.9 | K150: No | L150: N | M150: 55530.9 | N150: 28.32177049 | O150: 55403.75548 | P150: Full time | Q150: =IF(I150="","",IF(I150<='Main page'!$F$49,"Core staff","Senior staff")) -> Core staff | R150: =IF(D150=""," ",'Main page'!$F$21-(D150)) -> 25 | S150: =IF(D150=""," ",VLOOKUP(R150,'Main page'!$E$29:'Main page'!$G$41,3,TRUE)) -> 25-29
B151: 150 | C151: M | D151: 1940 | E151: Section 1 | F151: Branch B | G151: 1 | H151: 75 | I151: 3 | J151: 54452.2 | K151: No | L151: N | M151: 54452.2 | N151: 27.77161384 | O151: 54327.52529 | P151: Full time | Q151: =IF(I151="","",IF(I151<='Main page'!$F$49,"Core staff","Senior staff")) -> Core staff | R151: =IF(D151=""," ",'Main page'!$F$21-(D151)) -> 72 | S151: =IF(D151=""," ",VLOOKUP(R151,'Main page'!$E$29:'Main page'!$G$41,3,TRUE)) -> 70 and over
B152: 151 | C152: F | D152: 1968 | E152: Section 1 | F152: Branch B | G152: 0.5465191049 | H152: 75 | I152: 6 | J152: 66748.5 | K152: No | L152: N | M152: 122133.8822 | N152: 62.29050461 | O152: 121854.2424 | P152: Part time | Q152: =IF(I152="","",IF(I152<='Main page'!$F$49,"Core staff","Senior staff")) -> Core staff | R152: =IF(D152=""," ",'Main page'!$F$21-(D152)) -> 44 | S152: =IF(D152=""," ",VLOOKUP(R152,'Main page'!$E$29:'Main page'!$G$41,3,TRUE)) -> 40-44
B153: 152 | C153: F | D153: 1969 | E153: Section 3 | F153: Branch E | G153: 0.5308679402 | H153: 75 | I153: 7 | J153: 76125.6 | K153: No | L153: N | M153: 143398.3751 | N153: 73.13578328 | O153: 143070.0476 | P153: Part time | Q153: =IF(I153="","",IF(I153<='Main page'!$F$49,"Core staff","Senior staff")) -> Senior staff | R153: =IF(D153=""," ",'Main page'!$F$21-(D153)) -> 43 | S153: =IF(D153=""," ",VLOOKUP(R153,'Main page'!$E$29:'Main page'!$G$41,3,TRUE)) -> 40-44
B154: 153 | C154: F | D154: 1990 | E154: Section 1 | F154: Branch A | G154: 1 | H154: 75 | I154: 4 | J154: 51444 | K154: No | L154: N | M154: 51444 | N154: 26.23737705 | O154: 51326.21292 | P154: Full time | Q154: =IF(I154="","",IF(I154<='Main page'!$F$49,"Core staff","Senior staff")) -> Core staff | R154: =IF(D154=""," ",'Main page'!$F$21-(D154)) -> 22 | S154: =IF(D154=""," ",VLOOKUP(R154,'Main page'!$E$29:'Main page'!$G$41,3,TRUE)) -> 20-24
B155: 154 | C155: F | D155: 1969 | E155: Section 1 | F155: Branch A | G155: 1 | H155: 80 | I155: 4 | J155: 50285.7 | K155: No | L155: N | M155: 50285.7 | N155: 24.04370902 | O155: 47034.90467 | P155: Full time | Q155: =IF(I155="","",IF(I155<='Main page'!$F$49,"Core staff","Senior staff")) -> Core staff | R155: =IF(D155=""," ",'Main page'!$F$21-(D155)) -> 43 | S155: =IF(D155=""," ",VLOOKUP(R155,'Main page'!$E$29:'Main page'!$G$41,3,TRUE)) -> 40-44
B156: 155 | C156: F | D156: 1981 | E156: Section 6 | F156: Branch L | G156: 0.788433652 | H156: 75 | I156: 6 | J156: 64343.7 | K156: No | L156: N | M156: 81609.53028 | N156: 41.62234696 | O156: 81422.67568 | P156: Part time | Q156: =IF(I156="","",IF(I156<='Main page'!$F$49,"Core staff","Senior staff")) -> Core staff | R156: =IF(D156=""," ",'Main page'!$F$21-(D156)) -> 31 | S156: =IF(D156=""," ",VLOOKUP(R156,'Main page'!$E$29:'Main page'!$G$41,3,TRUE)) -> 30-34
B157: 156 | C157: M | D157: 1967 | E157: Section 6 | F157: Branch K | G157: 1 | H157: 75 | I157: 6 | J157: 81198.7 | K157: No | L157: N | M157: 81198.7 | N157: 41.41281603 | O157: 81012.78604 | P157: Full time | Q157: =IF(I157="","",IF(I157<='Main page'!$F$49,"Core staff","Senior staff")) -> Core staff | R157: =IF(D157=""," ",'Main page'!$F$21-(D157)) -> 45 | S157: =IF(D157=""," ",VLOOKUP(R157,'Main page'!$E$29:'Main page'!$G$41,3,TRUE)) -> 45-49
B158: 157 | C158: M | D158: 1938 | E158: Section 6 | F158: Branch L | G158: 1 | H158: 80 | I158: 8 | J158: 110816.2 | K158: Yes | L158: Y | M158: 110816.2 | N158: 52.98588798 | O158: 103652.3187 | P158: Full time | Q158: =IF(I158="","",IF(I158<='Main page'!$F$49,"Core staff","Senior staff")) -> Senior staff | R158: =IF(D158=""," ",'Main page'!$F$21-(D158)) -> 74 | S158: =IF(D158=""," ",VLOOKUP(R158,'Main page'!$E$29:'Main page'!$G$41,3,TRUE)) -> 70 and over
B159: 158 | C159: F | D159: 1972 | E159: Section 6 | F159: Branch L | G159: 0.7200674917 | H159: 75 | I159: 5 | J159: 57800.7 | K159: No | L159: N | M159: 80271.2255 | N159: 40.93978714 | O159: 80087.4351 | P159: Part time | Q159: =IF(I159="","",IF(I159<='Main page'!$F$49,"Core staff","Senior staff")) -> Core staff | R159: =IF(D159=""," ",'Main page'!$F$21-(D159)) -> 40 | S159: =IF(D159=""," ",VLOOKUP(R159,'Main page'!$E$29:'Main page'!$G$41,3,TRUE)) -> 40-44
B160: 159 | C160: F | D160: 1946 | E160: Section 2 | F160: Branch D | G160: 1 | H160: 75 | I160: 4 | J160: 51715.8 | K160: No | L160: N | M160: 51715.8 | N160: 26.376 | O160: 51597.3906 | P160: Full time | Q160: =IF(I160="","",IF(I160<='Main page'!$F$49,"Core staff","Senior staff")) -> Core staff | R160: =IF(D160=""," ",'Main page'!$F$21-(D160)) -> 66 | S160: =IF(D160=""," ",VLOOKUP(R160,'Main page'!$E$29:'Main page'!$G$41,3,TRUE)) -> 65-69
B161: 160 | C161: M | D161: 1935 | E161: Section 3 | F161: Branch E | G161: 1 | H161: 75 | I161: 2 | J161: 50417.4 | K161: Yes | L161: N | M161: 50417.4 | N161: 25.71379235 | O161: 50301.96344 | P161: Full time | Q161: =IF(I161="","",IF(I161<='Main page'!$F$49,"Core staff","Senior staff")) -> Core staff | R161: =IF(D161=""," ",'Main page'!$F$21-(D161)) -> 77 | S161: =IF(D161=""," ",VLOOKUP(R161,'Main page'!$E$29:'Main page'!$G$41,3,TRUE)) -> 70 and over
B162: 161 | C162: F | D162: 1972 | E162: Section 1 | F162: Branch A | G162: 0.7520790616 | H162: 75 | I162: 4 | J162: 50815.8 | K162: No | L162: N | M162: 67567.09846 | N162: 34.46045094 | O162: 67412.39565 | P162: Part time | Q162: =IF(I162="","",IF(I162<='Main page'!$F$49,"Core staff","Senior staff")) -> Core staff | R162: =IF(D162=""," ",'Main page'!$F$21-(D162)) -> 40 | S162: =IF(D162=""," ",VLOOKUP(R162,'Main page'!$E$29:'Main page'!$G$41,3,TRUE)) -> 40-44
B163: 162 | C163: F | D163: 1964 | E163: Section 3 | F163: Branch F | G163: 0.4498007788 | H163: 75 | I163: 3 | J163: 45060.3 | K163: No | L163: N | M163: 100178.3503 | N163: 51.09278342 | O163: 99948.98024 | P163: Part time | Q163: =IF(I163="","",IF(I163<='Main page'!$F$49,"Core staff","Senior staff")) -> Core staff | R163: =IF(D163=""," ",'Main page'!$F$21-(D163)) -> 48 | S163: =IF(D163=""," ",VLOOKUP(R163,'Main page'!$E$29:'Main page'!$G$41,3,TRUE)) -> 45-49
B164: 163 | C164: F | D164: 1974 | E164: Section 1 | F164: Branch B | G164: 1 | H164: 80 | I164: 2 | J164: 39169.8 | K164: No | L164: N | M164: 39169.8 | N164: 18.72872951 | O164: 36637.60888 | P164: Full time | Q164: =IF(I164="","",IF(I164<='Main page'!$F$49,"Core staff","Senior staff")) -> Core staff | R164: =IF(D164=""," ",'Main page'!$F$21-(D164)) -> 38 | S164: =IF(D164=""," ",VLOOKUP(R164,'Main page'!$E$29:'Main page'!$G$41,3,TRUE)) -> 35-39
B165: 164 | C165: M | D165: 1934 | E165: Section 2 | F165: Branch D | G165: 1 | H165: 80 | I165: 8 | J165: 111262.8 | K165: Yes | L165: N | M165: 111262.8 | N165: 53.19942623 | O165: 104070.0476 | P165: Full time | Q165: =IF(I165="","",IF(I165<='Main page'!$F$49,"Core staff","Senior staff")) -> Senior staff | R165: =IF(D165=""," ",'Main page'!$F$21-(D165)) -> 78 | S165: =IF(D165=""," ",VLOOKUP(R165,'Main page'!$E$29:'Main page'!$G$41,3,TRUE)) -> 70 and over
B166: 165 | C166: M | D166: 1976 | E166: Section 5 | F166: Branch J | G166: 1 | H166: 75 | I166: 3 | J166: 56909.6 | K166: No | L166: N | M166: 56909.6 | N166: 29.0249326 | O166: 56779.29878 | P166: Full time | Q166: =IF(I166="","",IF(I166<='Main page'!$F$49,"Core staff","Senior staff")) -> Core staff | R166: =IF(D166=""," ",'Main page'!$F$21-(D166)) -> 36 | S166: =IF(D166=""," ",VLOOKUP(R166,'Main page'!$E$29:'Main page'!$G$41,3,TRUE)) -> 35-39
B167: 166 | C167: M | D167: 1945 | E167: Section 1 | F167: Branch A | G167: 1 | H167: 75 | I167: 4 | J167: 63270.9 | K167: No | L167: N | M167: 63270.9 | N167: 32.26931148 | O167: 63126.03384 | P167: Full time | Q167: =IF(I167="","",IF(I167<='Main page'!$F$49,"Core staff","Senior staff")) -> Core staff | R167: =IF(D167=""," ",'Main page'!$F$21-(D167)) -> 67 | S167: =IF(D167=""," ",VLOOKUP(R167,'Main page'!$E$29:'Main page'!$G$41,3,TRUE)) -> 65-69
B168: 167 | C168: F | D168: 1980 | E168: Section 3 | F168: Branch E | G168: 1 | H168: 75 | I168: 3 | J168: 45364.5 | K168: No | L168: N | M168: 45364.5 | N168: 23.13672131 | O168: 45260.63265 | P168: Full time | Q168: =IF(I168="","",IF(I168<='Main page'!$F$49,"Core staff","Senior staff")) -> Core staff | R168: =IF(D168=""," ",'Main page'!$F$21-(D168)) -> 32 | S168: =IF(D168=""," ",VLOOKUP(R168,'Main page'!$E$29:'Main page'!$G$41,3,TRUE)) -> 30-34
B169: 168 | C169: F | D169: 1964 | E169: Section 2 | F169: Branch D | G169: 0.7753093895 | H169: 80 | I169: 6 | J169: 67328.1 | K169: No | L169: Y | M169: 86840.30003 | N169: 41.52200138 | O169: 81226.37715 | P169: Part time | Q169: =IF(I169="","",IF(I169<='Main page'!$F$49,"Core staff","Senior staff")) -> Core staff | R169: =IF(D169=""," ",'Main page'!$F$21-(D169)) -> 48 | S169: =IF(D169=""," ",VLOOKUP(R169,'Main page'!$E$29:'Main page'!$G$41,3,TRUE)) -> 45-49
B170: 169 | C170: F | D170: 1979 | E170: Section 2 | F170: Branch C | G170: 1 | H170: 75 | I170: 4 | J170: 51046.2 | K170: No | L170: N | M170: 51046.2 | N170: 26.0344918 | O170: 50929.32373 | P170: Full time | Q170: =IF(I170="","",IF(I170<='Main page'!$F$49,"Core staff","Senior staff")) -> Core staff | R170: =IF(D170=""," ",'Main page'!$F$21-(D170)) -> 33 | S170: =IF(D170=""," ",VLOOKUP(R170,'Main page'!$E$29:'Main page'!$G$41,3,TRUE)) -> 30-34
B171: 170 | C171: M | D171: 1977 | E171: Section 5 | F171: Branch J | G171: 1 | H171: 75 | I171: 2 | J171: 46329.8 | K171: No | L171: N | M171: 46329.8 | N171: 23.62904189 | O171: 46223.72248 | P171: Full time | Q171: =IF(I171="","",IF(I171<='Main page'!$F$49,"Core staff","Senior staff")) -> Core staff | R171: =IF(D171=""," ",'Main page'!$F$21-(D171)) -> 35 | S171: =IF(D171=""," ",VLOOKUP(R171,'Main page'!$E$29:'Main page'!$G$41,3,TRUE)) -> 35-39
B172: 171 | C172: M | D172: 1961 | E172: Section 5 | F172: Branch J | G172: 1 | H172: 75 | I172: 7 | J172: 91406.7 | K172: No | L172: N | M172: 91406.7 | N172: 46.61908197 | O172: 91197.41362 | P172: Full time | Q172: =IF(I172="","",IF(I172<='Main page'!$F$49,"Core staff","Senior staff")) -> Senior staff | R172: =IF(D172=""," ",'Main page'!$F$21-(D172)) -> 51 | S172: =IF(D172=""," ",VLOOKUP(R172,'Main page'!$E$29:'Main page'!$G$41,3,TRUE)) -> 50-54
B173: 172 | C173: M | D173: 1950 | E173: Section 1 | F173: Branch B | G173: 1 | H173: 75 | I173: 2 | J173: 46869.9 | K173: No | L173: N | M173: 46869.9 | N173: 23.90450273 | O173: 46762.58586 | P173: Full time | Q173: =IF(I173="","",IF(I173<='Main page'!$F$49,"Core staff","Senior staff")) -> Core staff | R173: =IF(D173=""," ",'Main page'!$F$21-(D173)) -> 62 | S173: =IF(D173=""," ",VLOOKUP(R173,'Main page'!$E$29:'Main page'!$G$41,3,TRUE)) -> 60-64
B174: 173 | C174: F | D174: 1968 | E174: Section 5 | F174: Branch J | G174: 0.7148966829 | H174: 75 | I174: 7 | J174: 75222 | K174: No | L174: N | M174: 105220.7988 | N174: 53.66452396 | O174: 104979.8834 | P174: Part time | Q174: =IF(I174="","",IF(I174<='Main page'!$F$49,"Core staff","Senior staff")) -> Senior staff | R174: =IF(D174=""," ",'Main page'!$F$21-(D174)) -> 44 | S174: =IF(D174=""," ",VLOOKUP(R174,'Main page'!$E$29:'Main page'!$G$41,3,TRUE)) -> 40-44
B175: 174 | C175: M | D175: 1962 | E175: Section 3 | F175: Branch F | G175: 1 | H175: 75 | I175: 2 | J175: 50546.1 | K175: No | L175: N | M175: 50546.1 | N175: 25.77943169 | O175: 50430.36877 | P175: Full time | Q175: =IF(I175="","",IF(I175<='Main page'!$F$49,"Core staff","Senior staff")) -> Core staff | R175: =IF(D175=""," ",'Main page'!$F$21-(D175)) -> 50 | S175: =IF(D175=""," ",VLOOKUP(R175,'Main page'!$E$29:'Main page'!$G$41,3,TRUE)) -> 50-54
B176: 175 | C176: F | D176: 1974 | E176: Section 2 | F176: Branch D | G176: 1 | H176: 75 | I176: 1 | J176: 33860.7 | K176: No | L176: N | M176: 33860.7 | N176: 17.26957377 | O176: 33783.17195 | P176: Full time | Q176: =IF(I176="","",IF(I176<='Main page'!$F$49,"Core staff","Senior staff")) -> Core staff | R176: =IF(D176=""," ",'Main page'!$F$21-(D176)) -> 38 | S176: =IF(D176=""," ",VLOOKUP(R176,'Main page'!$E$29:'Main page'!$G$41,3,TRUE)) -> 35-39
B177: 176 | C177: F | D177: 1979 | E177: Section 6 | F177: Branch L | G177: 1 | H177: 75 | I177: 4 | J177: 49466.7 | K177: No | L177: N | M177: 49466.7 | N177: 25.22891803 | O177: 49353.44018 | P177: Full time | Q177: =IF(I177="","",IF(I177<='Main page'!$F$49,"Core staff","Senior staff")) -> Core staff | R177: =IF(D177=""," ",'Main page'!$F$21-(D177)) -> 33 | S177: =IF(D177=""," ",VLOOKUP(R177,'Main page'!$E$29:'Main page'!$G$41,3,TRUE)) -> 30-34
B178: 177 | C178: F | D178: 1958 | E178: Section 2 | F178: Branch D | G178: 0.7576698759 | H178: 75 | I178: 2 | J178: 40139.1 | K178: No | L178: N | M178: 52977.03034 | N178: 27.01925045 | O178: 52855.7332 | P178: Part time | Q178: =IF(I178="","",IF(I178<='Main page'!$F$49,"Core staff","Senior staff")) -> Core staff | R178: =IF(D178=""," ",'Main page'!$F$21-(D178)) -> 54 | S178: =IF(D178=""," ",VLOOKUP(R178,'Main page'!$E$29:'Main page'!$G$41,3,TRUE)) -> 50-54
B179: 178 | C179: M | D179: 1957 | E179: Section 1 | F179: Branch A | G179: 1 | H179: 75 | I179: 8 | J179: 108704.2 | K179: No | L179: N | M179: 108704.2 | N179: 55.44112204 | O179: 108455.309 | P179: Full time | Q179: =IF(I179="","",IF(I179<='Main page'!$F$49,"Core staff","Senior staff")) -> Senior staff | R179: =IF(D179=""," ",'Main page'!$F$21-(D179)) -> 55 | S179: =IF(D179=""," ",VLOOKUP(R179,'Main page'!$E$29:'Main page'!$G$41,3,TRUE)) -> 55-59
B180: 179 | C180: F | D180: 1959 | E180: Section 3 | F180: Branch E | G180: 0.6742719207 | H180: 75 | I180: 3 | J180: 45727.2 | K180: Yes | L180: N | M180: 67817.15002 | N180: 34.5879818 | O180: 67661.87469 | P180: Part time | Q180: =IF(I180="","",IF(I180<='Main page'!$F$49,"Core staff","Senior staff")) -> Core staff | R180: =IF(D180=""," ",'Main page'!$F$21-(D180)) -> 53 | S180: =IF(D180=""," ",VLOOKUP(R180,'Main page'!$E$29:'Main page'!$G$41,3,TRUE)) -> 50-54
B181: 180 | C181: M | D181: 1935 | E181: Section 5 | F181: Branch J | G181: 1 | H181: 75 | I181: 8 | J181: 110391.6 | K181: No | L181: N | M181: 110391.6 | N181: 56.30172678 | O181: 110138.8455 | P181: Full time | Q181: =IF(I181="","",IF(I181<='Main page'!$F$49,"Core staff","Senior staff")) -> Senior staff | R181: =IF(D181=""," ",'Main page'!$F$21-(D181)) -> 77 | S181: =IF(D181=""," ",VLOOKUP(R181,'Main page'!$E$29:'Main page'!$G$41,3,TRUE)) -> 70 and over
B182: 181 | C182: M | D182: 1935 | E182: Section 3 | F182: Branch F | G182: 1 | H182: 75 | I182: 6 | J182: 85845.1 | K182: No | L182: N | M182: 85845.1 | N182: 43.78256466 | O182: 85648.54756 | P182: Full time | Q182: =IF(I182="","",IF(I182<='Main page'!$F$49,"Core staff","Senior staff")) -> Core staff | R182: =IF(D182=""," ",'Main page'!$F$21-(D182)) -> 77 | S182: =IF(D182=""," ",VLOOKUP(R182,'Main page'!$E$29:'Main page'!$G$41,3,TRUE)) -> 70 and over
B183: 182 | C183: F | D183: 1953 | E183: Section 1 | F183: Branch A | G183: 1 | H183: 75 | I183: 4 | J183: 49900.5 | K183: No | L183: N | M183: 49900.5 | N183: 25.45016393 | O183: 49786.24694 | P183: Full time | Q183: =IF(I183="","",IF(I183<='Main page'!$F$49,"Core staff","Senior staff")) -> Core staff | R183: =IF(D183=""," ",'Main page'!$F$21-(D183)) -> 59 | S183: =IF(D183=""," ",VLOOKUP(R183,'Main page'!$E$29:'Main page'!$G$41,3,TRUE)) -> 55-59
B184: 183 | C184: M | D184: 1955 | E184: Section 1 | F184: Branch B | G184: 1 | H184: 75 | I184: 3 | J184: 56482.8 | K184: No | L184: N | M184: 56482.8 | N184: 28.80725683 | O184: 56353.47599 | P184: Full time | Q184: =IF(I184="","",IF(I184<='Main page'!$F$49,"Core staff","Senior staff")) -> Core staff | R184: =IF(D184=""," ",'Main page'!$F$21-(D184)) -> 57 | S184: =IF(D184=""," ",VLOOKUP(R184,'Main page'!$E$29:'Main page'!$G$41,3,TRUE)) -> 55-59
B185: 184 | C185: F | D185: 1945 | E185: Section 6 | F185: Branch L | G185: 0.5790427225 | H185: 75 | I185: 6 | J185: 63580.5 | K185: No | L185: N | M185: 109802.7788 | N185: 56.00141726 | O185: 109551.3725 | P185: Part time | Q185: =IF(I185="","",IF(I185<='Main page'!$F$49,"Core staff","Senior staff")) -> Core staff | R185: =IF(D185=""," ",'Main page'!$F$21-(D185)) -> 67 | S185: =IF(D185=""," ",VLOOKUP(R185,'Main page'!$E$29:'Main page'!$G$41,3,TRUE)) -> 65-69
B186: 185 | C186: F | D186: 1948 | E186: Section 1 | F186: Branch B | G186: 1 | H186: 75 | I186: 9 | J186: 112493 | K186: No | L186: N | M186: 112493 | N186: 57.37347905 | O186: 112235.4341 | P186: Full time | Q186: =IF(I186="","",IF(I186<='Main page'!$F$49,"Core staff","Senior staff")) -> Senior staff | R186: =IF(D186=""," ",'Main page'!$F$21-(D186)) -> 64 | S186: =IF(D186=""," ",VLOOKUP(R186,'Main page'!$E$29:'Main page'!$G$41,3,TRUE)) -> 60-64
B187: 186 | C187: F | D187: 1990 | E187: Section 1 | F187: Branch B | G187: 1 | H187: 75 | I187: 4 | J187: 51124.5 | K187: No | L187: N | M187: 51124.5 | N187: 26.07442623 | O187: 51007.44445 | P187: Full time | Q187: =IF(I187="","",IF(I187<='Main page'!$F$49,"Core staff","Senior staff")) -> Core staff | R187: =IF(D187=""," ",'Main page'!$F$21-(D187)) -> 22 | S187: =IF(D187=""," ",VLOOKUP(R187,'Main page'!$E$29:'Main page'!$G$41,3,TRUE)) -> 20-24
B188: 187 | C188: M | D188: 1957 | E188: Section 1 | F188: Branch A | G188: 1 | H188: 75 | I188: 2 | J188: 48205.3 | K188: No | L188: N | M188: 48205.3 | N188: 24.58558106 | O188: 48094.9283 | P188: Full time | Q188: =IF(I188="","",IF(I188<='Main page'!$F$49,"Core staff","Senior staff")) -> Core staff | R188: =IF(D188=""," ",'Main page'!$F$21-(D188)) -> 55 | S188: =IF(D188=""," ",VLOOKUP(R188,'Main page'!$E$29:'Main page'!$G$41,3,TRUE)) -> 55-59
B189: 188 | C189: F | D189: 1983 | E189: Section 2 | F189: Branch C | G189: 0.785300522 | H189: 75 | I189: 3 | J189: 45558.9 | K189: No | L189: Y | M189: 58014.60552 | N189: 29.58850555 | O189: 57881.77427 | P189: Part time | Q189: =IF(I189="","",IF(I189<='Main page'!$F$49,"Core staff","Senior staff")) -> Core staff | R189: =IF(D189=""," ",'Main page'!$F$21-(D189)) -> 29 | S189: =IF(D189=""," ",VLOOKUP(R189,'Main page'!$E$29:'Main page'!$G$41,3,TRUE)) -> 25-29
B190: 189 | C190: F | D190: 1953 | E190: Section 1 | F190: Branch B | G190: 1 | H190: 75 | I190: 7 | J190: 75808.8 | K190: No | L190: N | M190: 75808.8 | N190: 38.66386885 | O190: 75635.22685 | P190: Full time | Q190: =IF(I190="","",IF(I190<='Main page'!$F$49,"Core staff","Senior staff")) -> Senior staff | R190: =IF(D190=""," ",'Main page'!$F$21-(D190)) -> 59 | S190: =IF(D190=""," ",VLOOKUP(R190,'Main page'!$E$29:'Main page'!$G$41,3,TRUE)) -> 55-59
B191: 190 | C191: F | D191: 1963 | E191: Section 3 | F191: Branch F | G191: 1 | H191: 80 | I191: 3 | J191: 45247.5 | K191: Yes | L191: N | M191: 45247.5 | N191: 21.63473361 | O191: 42322.40675 | P191: Full time | Q191: =IF(I191="","",IF(I191<='Main page'!$F$49,"Core staff","Senior staff")) -> Core staff | R191: =IF(D191=""," ",'Main page'!$F$21-(D191)) -> 49 | S191: =IF(D191=""," ",VLOOKUP(R191,'Main page'!$E$29:'Main page'!$G$41,3,TRUE)) -> 45-49
B192: 191 | C192: M | D192: 1949 | E192: Section 1 | F192: Branch A | G192: 1 | H192: 75 | I192: 2 | J192: 47243.9 | K192: No | L192: N | M192: 47243.9 | N192: 24.09524954 | O192: 47135.72954 | P192: Full time | Q192: =IF(I192="","",IF(I192<='Main page'!$F$49,"Core staff","Senior staff")) -> Core staff | R192: =IF(D192=""," ",'Main page'!$F$21-(D192)) -> 63 | S192: =IF(D192=""," ",VLOOKUP(R192,'Main page'!$E$29:'Main page'!$G$41,3,TRUE)) -> 60-64
B193: 192 | C193: M | D193: 1960 | E193: Section 6 | F193: Branch L | G193: 1 | H193: 75 | I193: 5 | J193: 69856.6 | K193: No | L193: N | M193: 69856.6 | N193: 35.62813843 | O193: 69696.65511 | P193: Full time | Q193: =IF(I193="","",IF(I193<='Main page'!$F$49,"Core staff","Senior staff")) -> Core staff | R193: =IF(D193=""," ",'Main page'!$F$21-(D193)) -> 52 | S193: =IF(D193=""," ",VLOOKUP(R193,'Main page'!$E$29:'Main page'!$G$41,3,TRUE)) -> 50-54
B194: 193 | C194: F | D194: 1949 | E194: Section 1 | F194: Branch B | G194: 0.7926121078 | H194: 75 | I194: 7 | J194: 75883.5 | K194: No | L194: N | M194: =IFERROR(J194/G194," ") -> 95738.50721 | N194: =IFERROR((M194/$U$4)/H194," ") -> 48.82838255 | O194: =IFERROR((N194*75)*26.083," ") -> 95519.30265 | P194: =IF(G194=0," ",IF(G194=1,"Full time","Part time")) -> Part time | Q194: =IF(I194="","",IF(I194<='Main page'!$F$49,"Core staff","Senior staff")) -> Senior staff | R194: =IF(D194=""," ",'Main page'!$F$21-(D194)) -> 63 | S194: =IF(D194=""," ",VLOOKUP(R194,'Main page'!$E$29:'Main page'!$G$41,3,TRUE)) -> 60-64
B195: 194 | C195: M | D195: 1961 | E195: Section 3 | F195: Branch F | G195: 1 | H195: 75 | I195: 2 | J195: 50975.1 | K195: No | L195: N | M195: 50975.1 | N195: 25.99822951 | O195: 50858.38652 | P195: Full time | Q195: =IF(I195="","",IF(I195<='Main page'!$F$49,"Core staff","Senior staff")) -> Core staff | R195: =IF(D195=""," ",'Main page'!$F$21-(D195)) -> 51 | S195: =IF(D195=""," ",VLOOKUP(R195,'Main page'!$E$29:'Main page'!$G$41,3,TRUE)) -> 50-54
B196: 195 | C196: M | D196: 1947 | E196: Section 6 | F196: Branch L | G196: 1 | H196: 75 | I196: 1 | J196: 38577 | K196: Yes | L196: N | M196: 38577 | N196: 19.67497268 | O196: 38488.67343 | P196: Full time | Q196: =IF(I196="","",IF(I196<='Main page'!$F$49,"Core staff","Senior staff")) -> Core staff | R196: =IF(D196=""," ",'Main page'!$F$21-(D196)) -> 65 | S196: =IF(D196=""," ",VLOOKUP(R196,'Main page'!$E$29:'Main page'!$G$41,3,TRUE)) -> 65-69
B197: 196 | C197: M | D197: 1962 | E197: Section 6 | F197: Branch K | G197: 1 | H197: 75 | I197: 2 | J197: 50243.6 | K197: No | L197: Y | M197: 50243.6 | N197: 25.62515118 | O197: 50128.56137 | P197: Full time | Q197: =IF(I197="","",IF(I197<='Main page'!$F$49,"Core staff","Senior staff")) -> Core staff | R197: =IF(D197=""," ",'Main page'!$F$21-(D197)) -> 50 | S197: =IF(D197=""," ",VLOOKUP(R197,'Main page'!$E$29:'Main page'!$G$41,3,TRUE)) -> 50-54
B198: 197 | C198: M | D198: 1952 | E198: Section 5 | F198: Branch I | G198: 0.5607506869 | H198: 75 | I198: 5 | J198: 69633.3 | K198: No | L198: N | M198: 124178.7155 | N198: 63.3334068 | O198: 123894.3937 | P198: Part time | Q198: =IF(I198="","",IF(I198<='Main page'!$F$49,"Core staff","Senior staff")) -> Core staff | R198: =IF(D198=""," ",'Main page'!$F$21-(D198)) -> 60 | S198: =IF(D198=""," ",VLOOKUP(R198,'Main page'!$E$29:'Main page'!$G$41,3,TRUE)) -> 60-64
B199: 198 | C199: M | D199: 1964 | E199: Section 3 | F199: Branch E | G199: 1 | H199: 75 | I199: 6 | J199: 84575.7 | K199: No | L199: N | M199: 84575.7 | N199: 43.13514754 | O199: 84382.054 | P199: Full time | Q199: =IF(I199="","",IF(I199<='Main page'!$F$49,"Core staff","Senior staff")) -> Core staff | R199: =IF(D199=""," ",'Main page'!$F$21-(D199)) -> 48 | S199: =IF(D199=""," ",VLOOKUP(R199,'Main page'!$E$29:'Main page'!$G$41,3,TRUE)) -> 45-49
B200: 199 | C200: F | D200: 1977 | E200: Section 3 | F200: Branch E | G200: 1 | H200: 75 | I200: 4 | J200: 49114.8 | K200: Yes | L200: N | M200: 49114.8 | N200: 25.04944262 | O200: 49002.3459 | P200: Full time | Q200: =IF(I200="","",IF(I200<='Main page'!$F$49,"Core staff","Senior staff")) -> Core staff | R200: =IF(D200=""," ",'Main page'!$F$21-(D200)) -> 35 | S200: =IF(D200=""," ",VLOOKUP(R200,'Main page'!$E$29:'Main page'!$G$41,3,TRUE)) -> 35-39
... 4300 more rows

Sheet Index
B4: ='Main page'!F21 -> 2012 | C4: Pay equity audit
B5: ='Main page'!F55 -> Example Organisation
B8: Index
B10: 1 | D10: Return to main page
B12: 2 | D12: Overall gender pay gap
B14: 3 | D14: Gender pay gap by section
B16: 4 | D16: Benefits/allowances
B18: 5 | D18: Gender pay gap by level
B20: 6 | D20: Gender pay gap by age cohort
B22: 7 | D22: Rates of part time work by level
B24: 8 | D24: Rates of part time work by section
B26: 9 | D26: Rates of part time work by age
B28: 10 | D28: Gender pay gap by branch
B30: 11 | D30: Purchased leave
B33: This pay equity audit tool was developed in 2008 by the Pay Equity Unit at the Labour Relations Division of the Department of Commerce. Development of the tool was partly guided by earlier work completed by EOWA and the New Zealand Department of Labour. The Pay Equity Unit gratefully acknowledges their work.

Sheet Overall gaps
B2: OVERALL GENDER PAY GAP IN | G2: ='Main page'!F55 -> Example Organisation
A6: Level range | B6: (All) | E6: Choose 'Core staff' to ignore senior staff above the level you specified on the main page. Choose (All) to include all staff in your analysis.
A8: Gender | B8: Data | C8: Total
A9: F | B9: Average of Salary | C9: 69627.21727
B10: Count of Gender | C10: 105
A11: M | B11: Average of Salary | C11: 73903.80479 | F11: Ensure that you choose the same level range on all pages that you intend to compare, otherwise you will not have the same sample group for your graphs and tables.
B12: Count of Gender | C12: 95
A13: Total Average of Salary | C13: 71658.59634
A14: Total Count of Gender | C14: 200
B18: Gender pay gap | C18: =1-C9/C11 -> 0.05786694645
B19: Density of females | C19: =C10/C14 -> 0.525

Sheet GPG by section
C2: Gender pay gap by section
A5: Level range | B5: (All)
C7: Section
A8: Gender | B8: Data | C8: Section 1 | D8: Section 2 | E8: Section 3 | F8: Section 4 | G8: Section 5 | H8: Section 6 | I8: Grand Total
A9: F | B9: Average of Salary | C9: 69333.82536 | D9: 58015.80251 | E9: 71245.57023 | F9: 65232.00244 | G9: 77061.52534 | H9: 76437.49657 | I9: 69627.21727
B10: Count of Gender | C10: 29 | D10: 18 | E10: 18 | F10: 8 | G10: 9 | H10: 23 | I10: 105
A11: M | B11: Average of Salary | C11: 65186.06116 | D11: 98017.48972 | E11: 72264.345 | F11: 75394.80105 | G11: 80443.35375 | H11: 68024.6989 | I11: 73903.80479
B12: Count of Gender | C12: 23 | D12: 10 | E12: 18 | F12: 10 | G12: 14 | H12: 20 | I12: 95
A13: Total Average of Salary | C13: 67499.23735 | D13: 72302.11937 | E13: 71754.95761 | F13: 70878.00166 | G13: 79120.02959 | H13: 72524.56742 | I13: 71658.59634
A14: Total Count of Gender | C14: 52 | D14: 28 | E14: 36 | F14: 18 | G14: 23 | H14: 43 | I14: 200
A16: Gender pay gap | C16: =IF(C8<>0,IF(ISERROR(1-C9/C11),0,(1-C9/C11)),"") -> -0.0636296185 | D16: =IF(D8<>0,IF(ISERROR(1-D9/D11),0,(1-D9/D11)),"") -> 0.4081076482 | E16: 0.01409788965 | F16: 0.1347944217 | G16: 0.04203987351 | H16: -0.1236726926 | I16: 0.05786694645 | W16: =IF(W8<>0,IF(ISERROR(1-W9/W11),0,(1-W9/W11)),"") -> 
A17: Density of females | C17: =IF(C8<>0,IF(ISERROR(C10/C14),0,(C10/C14)),"") -> 0.5576923077 | D17: =IF(D8<>0,IF(ISERROR(D10/D14),0,(D10/D14)),"") -> 0.6428571429 | E17: 0.5 | F17: 0.4444444444 | G17: 0.3913043478 | H17: 0.5348837209 | I17: 0.525 | K17: =IF(K8<>0,IF(ISERROR(K10/K14),0,(K10/K14)),"") -> 

Sheet Allowance - benefits
A6: Allowance/ benefit? | B6: Yes | D6: Ensure 'Yes' is selected from the drop down box to the left.
A7: Level range | B7: (All)
A9: Count of Gender | B9: Section
A10: Gender | B10: Section 1 | C10: Section 2 | D10: Section 3 | E10: Section 4 | F10: Section 6 | G10: Grand Total
A11: F | B11: 2 | C11: 1 | D11: 6 | E11: 2 | F11: 6 | G11: 17
A12: M | B12: 4 | C12: 3 | D12: 4 | F12: 5 | G12: 16
A13: Grand Total | B13: 6 | C13: 4 | D13: 10 | E13: 2 | F13: 11 | G13: 33
A15: Percentage of recipients who are female | B15: =IF(B10<>0,IF(ISERROR(B11/B13),0,(B11/B13)),"") -> 0.3333333333 | C15: =IF(C10<>0,IF(ISERROR(C11/C13),0,(C11/C13)),"") -> 0.25 | D15: 0.6 | E15: 1 | F15: 0.5454545455 | G15: 0.5151515152

Sheet GPG by level
C2: Gender pay gap by level
D5: Remember: if you want to compare staff throughout your report, make sure to select the appropriate level range.
A6: Level range | B6: (All)
C8: Level
A9: Gender | B9: Data | C9: 1 | D9: 2 | E9: 3 | F9: 4 | G9: 5 | H9: 6 | I9: 7 | J9: 8 | K9: 9 | L9: Grand Total
A10: F | B10: Average of Salary | C10: 46015.27646 | D10: 46736.64384 | E10: 56878.44925 | F10: 60137.31435 | G10: 70174.54454 | H10: 95792.54329 | I10: 92004.14086 | J10: 94981.0307 | K10: 111542.0253 | L10: 69627.21727
B11: Count of Gender | C11: 9 | D11: 10 | E11: 21 | F11: 19 | G11: 11 | H11: 13 | I11: 16 | J11: 4 | K11: 2 | L11: 105
A12: M | B12: Average of Salary | C12: 38488.67343 | D12: 50681.07643 | E12: 61726.57419 | F12: 67650.20516 | G12: 86738.25337 | H12: 87276.8372 | I12: 95998.40972 | J12: 105294.5853 | K12: 117752.0741 | L12: 73903.80479
B13: Count of Gender | C13: 1 | D13: 23 | E13: 13 | F13: 14 | G13: 14 | H13: 12 | I13: 11 | J13: 6 | K13: 1 | L13: 95
A14: Total Average of Salary | C14: 45262.61616 | D14: 49485.79383 | E14: 58732.14408 | F14: 63324.60136 | G14: 79450.22149 | H14: 91705.00436 | I14: 93631.43558 | J14: 101169.1635 | K14: 113612.0416 | L14: 71658.59634
A15: Total Count of Gender | C15: 10 | D15: 33 | E15: 34 | F15: 33 | G15: 25 | H15: 25 | I15: 27 | J15: 10 | K15: 3 | L15: 200
A17: Gender pay gap | C17: =IF(C9<>0,IF(ISERROR(1-C10/C12),0,(1-C10/C12)),"") -> -0.1955537139 | D17: =IF(D9<>0,IF(ISERROR(1-D10/D12),0,(1-D10/D12)),"") -> 0.0778285085 | E17: 0.07854194079 | F17: 0.1110549597 | G17: 0.1909619826 | H17: -0.09757120403 | I17: 0.04160765656 | J17: 0.09794952511 | K17: 0.05273833843 | L17: 0.05786694645 | O17: =IF(O9<>0,IF(ISERROR(1-O10/O12),0,(1-O10/O12)),"") ->  | AA17: =IF(AA9<>0,1-AA10/AA12,"") ->  | AB17: =IF(AB9<>0,1-AB10/AB12,"") ->  | AC17: =IF(AC9<>0,1-AC10/AC12,"") ->  | AD17: =IF(AD9<>0,1-AD10/AD12,"") ->  | AE17: =IF(AE9<>0,1-AE10/AE12,"") -> 
A18: Density of females | C18: =IF(C9<>0,IF(ISERROR(C11/C15),0,(C11/C15)),"") -> 0.9 | D18: =IF(D9<>0,IF(ISERROR(D11/D15),0,(D11/D15)),"") -> 0.303030303 | E18: 0.6176470588 | F18: 0.5757575758 | G18: 0.44 | H18: 0.52 | I18: 0.5925925926 | J18: 0.4 | K18: 0.6666666667 | L18: 0.525 | O18: =IF(O9<>0,IF(ISERROR(O11/O15),0,(O11/O15)),"") ->  | AA18: =IF(AA9<>0,AA11/AA15,"") -> 
A19: Density of males | C19: =IF(C9<>0,IF(ISERROR(C13/C15),0,(C13/C15)),"") -> 0.1 | D19: =IF(D9<>0,IF(ISERROR(D13/D15),0,(D13/D15)),"") -> 0.696969697 | E19: 0.3823529412 | F19: 0.4242424242 | G19: 0.56 | H19: 0.48 | I19: 0.4074074074 | J19: 0.6 | K19: 0.3333333333 | L19: 0.475

Sheet GPG by Age cohort
C2: Gender Pay Gap by age cohort
A6: Level range | B6: (All)
C8: Age Bracket
A9: Gender | B9: Data | C9: 20-24 | D9: 25-29 | E9: 30-34 | F9: 35-39 | G9: 40-44 | H9: 45-49 | I9: 50-54 | J9: 55-59 | K9: 60-64 | L9: 65-69 | M9: 70 and over
A10: F | B10: Average of Salary | C10: 52939.47304 | D10: 71898.75873 | E10: 77371.75987 | F10: 62671.59732 | G10: 78766.02911 | H10: 60299.35858 | I10: 68334.80264 | J10: 72646.46166 | K10: 82368.18336 | L10: 59459.16574
B11: Count of Gender | C11: 5 | D11: 8 | E11: 14 | F11: 16 | G11: 11 | H11: 12 | I11: 10 | J11: 12 | K11: 10 | L11: 7
A12: M | B12: Average of Salary | C12: 49426.17327 | D12: 98439.16129 | E12: 62161.12818 | F12: 73508.2316 | G12: 69215.37031 | H12: 72900.40153 | I12: 63864.48107 | J12: 78235.40106 | K12: 66341.42024 | L12: 79645.6672 | M12: 78417.29276
B13: Count of Gender | C13: 1 | D13: 5 | E13: 5 | F13: 9 | G13: 7 | H13: 9 | I13: 10 | J13: 8 | K13: 10 | L13: 6 | M13: 25
A14: Total Average of Salary | C14: 52353.92308 | D14: 82106.60587 | E14: 73368.96206 | F14: 66572.78566 | G14: 75051.88402 | H14: 65699.80556 | I14: 66099.64186 | J14: 74882.03742 | K14: 74354.8018 | L14: 68776.01257 | M14: 78417.29276
A15: Total Count of Gender | C15: 6 | D15: 13 | E15: 19 | F15: 25 | G15: 18 | H15: 21 | I15: 20 | J15: 20 | K15: 20 | L15: 13 | M15: 25
A17: Gender pay gap | C17: =IF(C9<>0,IF(ISERROR(1-C10/C12),0,(1-C10/C12)),"") -> -0.07108176782 | D17: =IF(D9<>0,IF(ISERROR(1-D10/D12),0,(1-D10/D12)),"") -> 0.2696122378 | E17: =IF(E9<>0,IF(ISERROR(1-E10/E12),0,(1-E10/E12)),"") -> -0.244696841 | F17: =IF(F9<>0,IF(ISERROR(1-F10/F12),0,(1-F10/F12)),"") -> 0.1474206907 | G17: -0.1379846522 | H17: 0.1728528608 | I17: -0.06999699187 | J17: =IF(J9<>0,IF(ISERROR(1-J10/J12),0,(1-J10/J12)),"") -> 0.07143747362 | K17: -0.2415800425 | L17: 0.2534538559 | M17: 1 | AA17: =IF(AA9<>0,IF(AA10>0,IF(AA12>0,1-AA10/AA12,""),""),"") -> 
A18: Density of females | C18: =IF(C9<>0,IF(ISERROR(C11/C15),0,(C11/C15)),"") -> 0.8333333333 | D18: =IF(D9<>0,IF(ISERROR(D11/D15),0,(D11/D15)),"") -> 0.6153846154 | E18: =IF(E9<>0,IF(ISERROR(E11/E15),0,(E11/E15)),"") -> 0.7368421053 | F18: =IF(F9<>0,IF(ISERROR(F11/F15),0,(F11/F15)),"") -> 0.64 | G18: 0.6111111111 | H18: 0.5714285714 | I18: 0.5 | J18: 0.6 | K18: 0.5 | L18: 0.5384615385 | M18: 0 | AA18: =IF(AA9<>0,AA11/AA15,"") -> 
A19: Density of males | C19: =IF(C9<>0,IF(ISERROR(C13/C15),0,(C13/C15)),"") -> 0.1666666667 | D19: =IF(D9<>0,IF(ISERROR(D13/D15),0,(D13/D15)),"") -> 0.3846153846 | E19: 0.2631578947 | F19: 0.36 | G19: 0.3888888889 | H19: 0.4285714286 | I19: 0.5 | J19: 0.4 | K19: 0.5 | L19: 0.4615384615 | M19: 1 | O19: =IF(O9<>0,IF(ISERROR(O13/O15),0,(O13/O15)),"") -> 

Sheet PT by level
C2: Rate of part time work by level
A6: Level range | B6: (All)
A8: Count of Gender | C8: Level
A9: Status | B9: Gender | C9: 1 | D9: 2 | E9: 3 | F9: 4 | G9: 5 | H9: 6 | I9: 7 | J9: 8 | K9: 9 | L9: Grand Total
A10: Full time | B10: F | C10: 3 | D10: 6 | E10: 12 | F10: 14 | G10: 7 | H10: 4 | I10: 11 | J10: 4 | K10: 2 | L10: 63
B11: M | C11: 1 | D11: 22 | E11: 11 | F11: 12 | G11: 10 | H11: 11 | I11: 10 | J11: 6 | K11: 1 | L11: 84
A12: Full time Total | C12: 4 | D12: 28 | E12: 23 | F12: 26 | G12: 17 | H12: 15 | I12: 21 | J12: 10 | K12: 3 | L12: 147
A13: Part time | B13: F | C13: 6 | D13: 4 | E13: 9 | F13: 5 | G13: 4 | H13: 9 | I13: 5 | L13: 42
B14: M | D14: 1 | E14: 2 | F14: 2 | G14: 4 | H14: 1 | I14: 1 | L14: 11
A15: Part time Total | C15: 6 | D15: 5 | E15: 11 | F15: 7 | G15: 8 | H15: 10 | I15: 6 | L15: 53
A16: Grand Total | C16: 10 | D16: 33 | E16: 34 | F16: 33 | G16: 25 | H16: 25 | I16: 27 | J16: 10 | K16: 3 | L16: 200
A19: Percentage of employees that work part time | C19: =IF(C9<>0,IF(ISERROR(C15/C16),0,(C15/C16)),"") -> 0.6 | D19: 0.1515151515 | E19: =IF(E9<>0,IF(ISERROR(E15/E16),0,(E15/E16)),"") -> 0.3235294118 | F19: 0.2121212121 | G19: 0.32 | H19: 0.4 | I19: 0.2222222222 | J19: 0 | K19: 0 | L19: 0.265
A20: Percentage of females that work part time | C20: =IF(C9<>0,C13/(C10+C13),"") -> 0.6666666667 | D20: 0.4 | E20: 0.4285714286 | F20: 0.2631578947 | G20: 0.3636363636 | H20: 0.6923076923 | I20: 0.3125 | J20: 0 | K20: 0 | L20: =IF(L9<>0,L13/(L10+L13),"") -> 0.4 | M20: =IF(M9<>0,M13/(M10+M13),"") -> 
A21: Percentage of males that work part time | C21: =IF(C9<>0,C14/(C14+C11),"") -> 0 | D21: 0.04347826087 | E21: 0.1538461538 | F21: 0.1428571429 | G21: 0.2857142857 | H21: 0.08333333333 | I21: 0.09090909091 | J21: 0 | K21: 0 | L21: =IF(L9<>0,L14/(L14+L11),"") -> 0.1157894737 | M21: =IF(M9<>0,M14/(M14+M11),"") -> 
L24: Extra Tip: You might compare the percentage of part-time workers per level to the gender pay gap per level

Sheet PT by section
C2: Rate of part time work by section
D5: Remember: if you want to compare staff throughout your report, make sure to select the appropriate level range.
A6: Level range | B6: (All)
A8: Count of Gender | C8: Section
A9: Status | B9: Gender | C9: Section 1 | D9: Section 2 | E9: Section 3 | F9: Section 4 | G9: Section 5 | H9: Section 6 | I9: Grand Total
A10: Full time | B10: F | C10: 20 | D10: 9 | E10: 11 | F10: 6 | G10: 4 | H10: 13 | I10: 63
B11: M | C11: 22 | D11: 7 | E11: 17 | F11: 9 | G11: 11 | H11: 18 | I11: 84
A12: Full time Total | C12: 42 | D12: 16 | E12: 28 | F12: 15 | G12: 15 | H12: 31 | I12: 147
A13: Part time | B13: F | C13: 9 | D13: 9 | E13: 7 | F13: 2 | G13: 5 | H13: 10 | I13: 42
B14: M | C14: 1 | D14: 3 | E14: 1 | F14: 1 | G14: 3 | H14: 2 | I14: 11
A15: Part time Total | C15: 10 | D15: 12 | E15: 8 | F15: 3 | G15: 8 | H15: 12 | I15: 53
A16: Grand Total | C16: 52 | D16: 28 | E16: 36 | F16: 18 | G16: 23 | H16: 43 | I16: 200
A19: Percentage of employees that work part time | C19: =IF(C9<>0,IF(ISERROR(C15/C16),0,(C15/C16)),"") -> 0.1923076923 | D19: 0.4285714286 | E19: 0.2222222222 | F19: 0.1666666667 | G19: 0.347826087 | H19: 0.2790697674 | I19: =IF(I9<>0,IF(ISERROR(I15/I16),0,(I15/I16)),"") -> 0.265 | AA19: =IF(AA9<>0,AA15/AA16,"") -> 
A20: Percentage of females that work part time | C20: =IF(C9<>0,IF(ISERROR(C13/(C13+C10)),0,(C13/(C13+C10))),"") -> 0.3103448276 | D20: 0.5 | E20: 0.3888888889 | F20: 0.25 | G20: 0.5555555556 | H20: 0.4347826087 | I20: 0.4
A21: Percentage of males that work part time | C21: =IF(C9<>0,IF(ISERROR(C14/(C14+C11)),0,(C14/(C14+C11))),"") -> 0.04347826087 | D21: =IF(D9<>0,IF(ISERROR(D14/(D14+D11)),0,(D14/(D14+D11))),"") -> 0.3 | E21: 0.05555555556 | F21: 0.1 | G21: 0.2142857143 | H21: 0.1 | I21: 0.1157894737 | AA21: =IF(AA9<>0,AA14/(AA14+AA11),"") ->  | AB21: =IF(AB9<>0,AB14/(AB14+AB11),"") ->  | AC21: =IF(AC9<>0,AC14/(AC14+AC11),"") -> 
K24: Extra Tip: You might compare the percentage of part-time workers per section to the gender pay gap per section

Sheet PT by Age
D2: Rate of part time work by age
A6: Level range | B6: (All)
A8: Count of Gender | C8: Age Bracket
A9: Status | B9: Gender | C9: 20-24 | D9: 25-29 | E9: 30-34 | F9: 35-39 | G9: 40-44 | H9: 45-49 | I9: 50-54 | J9: 55-59 | K9: 60-64 | L9: 65-69 | M9: 70 and over
A10: Full time | B10: F | C10: 4 | D10: 6 | E10: 7 | F10: 13 | G10: 3 | H10: 6 | I10: 6 | J10: 8 | K10: 6 | L10: 4
B11: M | C11: 1 | D11: 4 | E11: 5 | F11: 7 | G11: 7 | H11: 9 | I11: 10 | J11: 7 | K11: 9 | L11: 4 | M11: 21
A12: Full time Total | C12: 5 | D12: 10 | E12: 12 | F12: 20 | G12: 10 | H12: 15 | I12: 16 | J12: 15 | K12: 15 | L12: 8 | M12: 21
A13: Part time | B13: F | C13: 1 | D13: 2 | E13: 6 | F13: 3 | G13: 8 | H13: 6 | I13: 4 | J13: 4 | K13: 4 | L13: 3
B14: M | D14: 1 | F14: 2 | J14: 1 | K14: 1 | L14: 2 | M14: 4
A15: Part time Total | C15: 1 | D15: 3 | E15: 6 | F15: 5 | G15: 8 | H15: 6 | I15: 4 | J15: 5 | K15: 5 | L15: 5 | M15: 4
A16: Grand Total | C16: 6 | D16: 13 | E16: 18 | F16: 25 | G16: 18 | H16: 21 | I16: 20 | J16: 20 | K16: 20 | L16: 13 | M16: 25
A19: Percentage of employees that work part time | C19: =IF(C9<>0,IF(ISERROR(C15/C16),0,(C15/C16)),"") -> 0.1666666667 | D19: =IF(D9<>0,IF(ISERROR(D15/D16),0,(D15/D16)),"") -> 0.2307692308 | E19: =IF(E9<>0,IF(ISERROR(E15/E16),0,(E15/E16)),"") -> 0.3333333333 | F19: 0.2 | G19: 0.4444444444 | H19: 0.2857142857 | I19: 0.2 | J19: 0.25 | K19: =IF(K9<>0,K15/K16,"") -> 0.25 | L19: 0.3846153846 | M19: 0.16
A20: Percentage of females that work part time | C20: =IF(C9<>0,IF(ISERROR(C13/(C13+C10)),0,C13/(C13+C10)),"") -> 0.2 | D20: =IF(D9<>0,IF(ISERROR(D13/(D13+D10)),0,D13/(D13+D10)),"") -> 0.25 | E20: =IF(E9<>0,IF(ISERROR(E13/(E13+E10)),0,E13/(E13+E10)),"") -> 0.4615384615 | F20: 0.1875 | G20: 0.7272727273 | H20: 0.5 | I20: 0.4 | J20: 0.3333333333 | K20: =IF(K9<>0,IF(ISERROR(K13/(K13+K10)),0,K13/(K13+K10)),"") -> 0.4 | L20: 0.4285714286 | M20: 0
A21: Percentage of males that work part time | C21: =IF(C9<>0,IF(ISERROR(C14/(C14+C11)),0,C14/(C14+C11)),"") -> 0 | D21: =IF(D9<>0,IF(ISERROR(D14/(D14+D11)),0,D14/(D14+D11)),"") -> 0.2 | E21: =IF(E9<>0,IF(ISERROR(E14/(E14+E11)),0,E14/(E14+E11)),"") -> 0 | F21: 0.2222222222 | G21: 0 | H21: 0 | I21: 0 | J21: 0.125 | K21: =IF(K9<>0,IF(ISERROR(K14/(K14+K11)),0,K14/(K14+K11)),"") -> 0.1 | L21: 0.3333333333 | M21: 0.16 | AA21: =IF(AA9<>0,IF(ISERROR(AA14/(AA14+AA11)),0,AA14/(AA14+AA11)),"") -> 

Sheet GPG by Branch
C2: GPG by branch
A5: Section | B5: (All) | D5: First: Choose section from the drop down box to the left.
A6: Level range | B6: (All)
C8: Branch/Unit
A9: Gender | B9: Data | C9: Branch A | D9: Branch B | E9: Branch C | F9: Branch D | G9: Branch E | H9: Branch F | I9: Branch G | J9: Branch H | K9: Branch I | L9: Branch J | M9: Branch K | N9: Branch L | O9: Grand Total
A10: F | B10: Average of Salary | C10: 67105.81857 | D10: 70182.58985 | E10: 55124.93011 | F10: 59461.23871 | G10: 74274.55126 | H10: 68216.58921 | I10: 63648.08041 | J10: 76319.45663 | K10: 75404.71521 | L10: 79132.538 | M10: 87539.28544 | N10: 69300.6323 | O10: 69627.21727
B11: Count of Gender | C11: 8 | D11: 21 | E11: 6 | F11: 12 | G11: 9 | H11: 9 | I11: 7 | J11: 1 | K11: 5 | L11: 4 | M11: 9 | N11: 14 | O11: 105
A12: M | B12: Average of Salary | C12: 68220.19013 | D12: 61876.10227 | E12: 79867.14768 | F12: 110117.7177 | G12: 73130.65389 | H12: 71181.45887 | I12: 74999.31951 | J12: 75988.02336 | K12: 116899.1628 | L12: 70500.86037 | M12: 75637.73308 | N12: 64761.96996 | O12: 73903.80479
B13: Count of Gender | C13: 12 | D13: 11 | E13: 4 | F13: 6 | G13: 10 | H13: 8 | I13: 6 | J13: 4 | K13: 3 | L13: 11 | M13: 6 | N13: 14 | O13: 95
A14: Total Average of Salary | C14: 67774.44151 | D14: 67327.23475 | E14: 65021.81714 | F14: 76346.73172 | G14: 73672.50002 | H14: 69611.82199 | I14: 68887.11384 | J14: 76054.31001 | K14: 90965.13306 | L14: 72802.64107 | M14: 82778.6645 | N14: 67031.30113 | O14: 71658.59634
A15: Total Count of Gender | C15: 20 | D15: 32 | E15: 10 | F15: 18 | G15: 19 | H15: 17 | I15: 13 | J15: 5 | K15: 8 | L15: 15 | M15: 15 | N15: 28 | O15: 200
A17: Gender pay gap | C17: =IF(C9<>0,IF(ISERROR(1-C10/C12),0,(1-C10/C12)),"") -> 0.01633492313 | D17: =IF(D9<>0,IF(ISERROR(1-D10/D12),0,(1-D10/D12)),"") -> -0.1342438724 | E17: 0.3097921773 | F17: 0.4600211489 | G17: -0.01564183154 | H17: 0.04165227453 | I17: 0.1513512279 | J17: -0.004361651386 | K17: 0.3549593222 | L17: -0.1224336494 | M17: -0.1573494059 | N17: -0.07008221555 | O17: 0.05786694645 | P17: =IF(P9<>0,IF(ISERROR(1-P10/P12),0,(1-P10/P12)),"") -> 
A18: Density of females | C18: =IF(C9<>0,IF(ISERROR(C11/C15),0,(C11/C15)),"") -> 0.4 | D18: =IF(D9<>0,IF(ISERROR(D11/D15),0,(D11/D15)),"") -> 0.65625 | E18: 0.6 | F18: 0.6666666667 | G18: 0.4736842105 | H18: 0.5294117647 | I18: 0.5384615385 | J18: 0.2 | K18: 0.625 | L18: 0.2666666667 | M18: 0.6 | N18: 0.5 | O18: 0.525 | P18: =IF(P9<>0,IF(ISERROR(P11/P15),0,(P11/P15)),"") -> 

Sheet Purchased leave
B2: Number of employees who use purchased leave by section
A5: Purchased leave? (Y/N) | B5: Y | D5: Ensure "Y" is selected from the drop down box to the left.
A6: Level range | B6: (All)
A8: Count of Gender | B8: Section
A9: Gender | B9: Section 1 | C9: Section 2 | D9: Section 3 | E9: Section 4 | F9: Section 5 | G9: Section 6 | H9: Grand Total
A10: F | B10: 1 | C10: 2 | E10: 2 | F10: 1 | G10: 1 | H10: 7
A11: M | B11: 4 | C11: 4 | D11: 1 | E11: 1 | G11: 2 | H11: 12
A12: Grand Total | B12: 5 | C12: 6 | D12: 1 | E12: 3 | F12: 1 | G12: 3 | H12: 19
A14: Female/ Purch leave | B14: =IF(B9<>0,B10,"") -> 1 | C14: =IF(C9<>0,C10,"") -> 2 | D14: 0 | E14: 2 | F14: 1 | G14: 1 | H14: 7
A15: Male/ Purch leave | B15: =IF(B9<>0,B11,"") -> 4 | C15: =IF(C9<>0,C11,"") -> 4 | D15: 1 | E15: 1 | F15: 0 | G15: 2 | H15: 12 | J15: Extra Tip: You might compare the number of staff using purchased leave in each section, with the total number of staff in each section.

Sheet (Additional variable 1)
A6: Level range | B6: (All)
A7: Section | B7: (All)
A9: Gender | B9: Data | C9: Total
A10: F | B10: Average of Salary | C10: 69627.21727
B11: Count of Gender | C11: 105
A12: M | B12: Average of Salary | C12: 73903.80479
B13: Count of Gender | C13: 95
A14: Total Average of Salary | C14: 71658.59634
A15: Total Count of Gender | C15: 200

Sheet (Additional variable 2)
A6: Level range | B6: (All)
A7: Section | B7: (All)
A9: Gender | B9: Data | C9: Total
A10: F | B10: Average of Salary | C10: 69627.21727
B11: Count of Gender | C11: 105
A12: M | B12: Average of Salary | C12: 73903.80479
B13: Count of Gender | C13: 95
A14: Total Average of Salary | C14: 71658.59634
A15: Total Count of Gender | C15: 200
